{"text_format":"1","workbook":"xlsx","n_sheets":9,"sheets":["Instructivo","DEMANDA ANUAL","VOLUMEN DE QUEJAS","COSTO ADMINISTRACIÓN PÚBLICA","RESUMEN DE COSTOS AP","AUXILIAR COSTO ADMINISTRACIÓN","TIEMPO DE RESPUESTA","CANAL ATENCIÓN","RESUMEN"],"not_rendered":{"charts":0,"images":7,"macros":1,"external_links":0,"defined_names":1,"comments":5,"pivot_tables":0},"unopened":[],"bounds":{"document_bytes":16777216,"sheet_cells":100000,"rows_first":2000,"rows_last":500,"rows_between":2000,"halvings":0,"cell_chars":16384,"cell_head_chars":4096},"cells_cut":0,"cells_raw":0,"read":"whole","date_system":"1900"}

{"sheet":"Instructivo","index":0,"n_rows":70,"n_cols":1,"rows_kept":70,"cut":false,"hidden":false,"merged":[]}
["CRITERIO DE PRIORIZACIÓN DE TRÁMITES ADMINISTRATIVOS"]
["Instructivo"]
["Consideraciones generales"]
[]
["En las hojas “COSTO DE ADMINISTRACIÓN PÚBLICA”y “RESUMEN”  para añadir más trámites y que apliquen las fórmulas, se deberá seleccionar la primera fila y copiarla una por cada trámite de la entidad"]
[]
["Todas las hojas tienen columnas de color celeste, en las cuales NO deben ingresar valores ya que contienen fórmulas."]
["Para la carga en GOB.EC. La institución debe recordar que el peso máximo del archivo es de 2 MB."]
["Esquema de puntuación"]
["Para priorizar un trámite, se realizará un análisis de criterios básicos y adicionales basado en información que disponen las instituciones sujetas a esta norma técnica. Cada criterio será puntuado según los lineamientos presentes en esta norma."]
["a) Demanda Anual"]
["Considerará el volumen o frecuencia de las solicitudes que ingresan al año a cada institución para la gestión de un trámite en particular."]
["La identificación del volumen anual de los trámites se realizará a través de sus registros de transacciones y/o el número de visitas de consulta de información realizadas a través de páginas web institucionales."]
["Para realizar el registro realice lo siguiente:"]
["1.- Seleccione la hoja DEMANDA ANUAL"]
["2.- Ingrese los trámites de la institución registrando el identificador y nombre en las columnas respectivas.  "]
["3.- Para cada trámite debe especificar en la columna DEMANDA ANUAL el volumen o frecuencia anual, de acuerdo a lo mencionado anteriormente."]
["4.- Una vez terminado el llenado solicitado presione el botón PUNTUACIÓN, se ordenara de menor a mayor. "]
["5.- Usted visualizará el ordenamiento de los trámites ingresados de acuerdo al número de  volumen o frecuencia anual."]
["6.- Así mismo, usted visualizará el puntaje obtenido en la columna PUNTUACIÓN de acuerdo al grupo obtenido por cada trámite de acuerdo al número de volumen o frecuencia anual cosiderando lo siguiente: ** Primer grupo (trámites con menor demanda no incluye los trámites con demanda 0 ) = 3\n** Segundo grupo (trámites con demanda intermedia) = 6\n** Tercer grupo (trámites con mayor demanda) = 10"]
["Cada vez que requiera actualizar el puntaje presionando el botón puntuación, debe verificar que la celda de la columna puntaje se encuentren vacías, es decir, se debe borrar cualquier valor de puntaje obtenido previamente."]
["b) Volumen de quejas asociadas a un trámite: "]
["Considerará la cantidad de quejas recibidas en relación a un trámite durante un año. Estas quejas deberán estar documentadas en medios físicos y/o digitales."]
["Para determinar la puntuación, se colocará en una tabla todos los trámites con sus correspondientes quejas ordenándose de menor a mayor. Se dividirá en 2 partes en los que cada grupo contenga la misma cantidad de trámites."]
["Para realizar el registro realice lo siguiente:"]
["1.- Seleccione la hoja VOLUMEN DE QUEJAS"]
["2.- Ingrese los trámites de la institución registrando el identificador y nombre en las columnas respectivas.  Si usted requiere de acuerdo al número de trámites copie filas adicionales que estén dentro del cuadro"]
["3.- Para cada trámite debe especificar en la columna VOLUMEN QUEJAS el número de quejas anual, de acuerdo a lo mencionado anteriormente."]
["4.- Una vez terminado el llenado solicitado presione el botón PUNTUACIÓN."]
["5.- Usted visualizará el ordenamiento de los trámites ingresados de acuerdo al número de  volumen o frecuencia anual."]
["6.- Así mismo, usted visualizará el puntaje obtenido en la columna PUNTUACIÓN de acuerdo al grupo obtenido por cada trámite de acuerdo al número de volumen o frecuencia anual cosiderando lo siguiente: La puntuación se basará en los siguientes grupos:\n** Primer grupo (trámites con menor cantidad de quejas, no incluye los trámites con queja 0 ) = 4\n** Segundo grupo (trámites con mayor porcentaje de quejas) = 10"]
["El valor del volumen de quejas no debe ser superior al valor del volumen de la demana, no le permitirá registrar un valor."]
["c) Costo para la administración pública: "]
["En cada trámite, basado en un caso estándar, se deberá estimar el costo incurrido en el costo de personal y recursos necesarios para su atención desde que el administrado entregó todos los requisitos hasta que la institución entregue el producto, respuesta o servicio requerido en el trámite. Se considerará:"]
["• Costo de personal:"]
["Costo del personal para atender el trámite, se excluyen actividades realizadas automáticamente o que dependen del administrado. El tiempo deberá considerar únicamente el tiempo efectivo de trabajo del personal, no debe considerar el tiempo de espera o de movimiento."]
["• Costo de recursos:"]
["Se deberá considerar el costo directo en el que la institución debe incurrir para atender un trámite. Se debe considerar los insumos o materia prima necesaria u cualquier otro que la institución considere pertinente."]
["Para realizar el registro realice lo siguiente:"]
["1.- Seleccione la hoja COSTO ADMINISTRACIÓN PÚBLICA"]
["2.- Ingrese los trámites de la institución registrando el identificador y nombre en las columnas respectivas.  Si usted requiere de acuerdo al número de trámites copie filas adicionales que estén dentro del cuadro"]
["3.- Para calcular el tiempo de las actividades, utilizar la hoja AUXILIAR COSTO ADMINISTRACIÓN donde deberá listar todas las actividades que realiza la institución en un caso estándar y asignar el tiempo mínimo que toma cada actvidad (en horas). El tiempo total de las actividades, deberá ingresar en la correspondiente celda de la hoja COSTO ADMINISTRACIÓN PÚBLICA"]
["4.- En función de la información registrada en el paso 3, la matriz entregará el costo del personal"]
["5.- Completar la columna \"Costo recursos\", en la cual ingresará el costo directo en el que incurre la institución para entregar el trámite. En este valor se considerarán los valores correspondientes a insumos y/o materia prima mínimos que se invierten por cada trámite (no se considera mano de obra)"]
["6.- La columna \"Costo para la adm. pública\" mostrará el costto de este criterio para cada trámite"]
["7,- Para que la fórmula funcione debe arrastrar hacia abajo al último de los támites ingresados, no copiar"]
["7.- Una vez que disponga del Costo para la administración pública, presionar el botón \"GENERAR\"."]
["8. Visualizar la hoja “RESUMEN DE COSTO AP” en la que va a encontrar copiada las celdas necesarias para el ordenamiento y puntuación de las mismas al presionar el botón “PUNTUACIÓN”"]
[]
["d) Tiempo de respuesta: "]
["Considerará los tiempos que a las instituciones les toma dar respuesta a un trámite desde que reciben la solicitud del administrado hasta la finalización del mismo. Para la definición del tiempo se considerará un caso estándar."]
["Para determinar la puntuación, se colocará en una tabla todos los trámites con el tiempo de respuesta, ordenándose de menor a mayor. Se dividirá en 4 grupos, en los que cada uno contenga la misma cantidad de trámites."]
["Para realizar el registro realice lo siguiente:"]
["1.- Seleccione la hoja TIEMPO DE RESPUESTA"]
["2.- Ingrese los trámites de la institución registrando el identificador y nombre en las columnas respectivas.  Si usted requiere de acuerdo al número de trámites copie filas adicionales que estén dentro del cuadro"]
["3.- Para cada trámite debe especificar en la columna TIEMPO RESPUESTA el tiempo, de acuerdo a lo mencionado anteriormente."]
["4.- Una vez terminado el llenado solicitado presione el botón PUNTUACIÓN."]
["5.- Usted visualizará el ordenamiento de los trámites ingresados de acuerdo al número de  volumen o frecuencia anual."]
["6.- Así mismo, usted visualizará el puntaje obtenido en la columna PUNTUACIÓN de acuerdo al grupo obtenido por cada trámite de acuerdo al número de volumen o frecuencia anual cosiderando lo siguiente:  La puntuación considera lo siguiente:\n** Primer grupo (menor o igual a 40 horas laboralres) = 0\n** Segundo grupo mayor  40 horas laboralres) = 30"]
["e) Canal de atención: "]
["Considerará los canales de atención a través de los cuales el administrado puede iniciar el trámite."]
["Para realizar el registro realice lo siguiente:"]
["1.- Seleccione la hoja CANAL ATENCIÓN"]
["2.- Ingrese los trámites de la institución registrando el identificador y nombre en las columnas respectivas.  Si usted requiere de acuerdo al número de trámites copie filas adicionales que estén dentro del cuadro"]
["3.- Para cada trámite debe seleccionar el canal de atención del trámite en la columna CANAL ATENCIÓN, que pueden ser: \nEl trámite se puede completar totalmente en línea: Se considera trámite totalmente en línea cuando el administrado no requiere realizar ninguna interacción presencial con la institución = 0\nEl trámite no se puede completar totalmente en línea: Se considera este caso, cuando el trámite incluye al menos una actividad, incluido mecanismos de pago, en la que el administrado deba acudir presencialmente a la institución, para la realización de dicho trámite. Los trámites presenciales se consideran dentro de esta categoría = 10"]
["4.- De acuerdo a la selección usted obtendrá la puntuación del trámite que se visualizará en la columna PUNTUACIÓN."]
[]
["f) Resumen"]
["En esta hoja deberá consolidar todas las puntuaciones obtenidas para cada trámite en los criterios a) hasta e). Adicionalmente deberá analizar los criterios adicionales que dispone la norma técnica, para estos últimos solamente deberá seleccionar en la celda correspondiente y la matriz asignará la puntuación adicional. Los criterios que deberá considerar son:\n- NECESIDADES CIUDADANAS: Si la institución ha implementado mecanismos para identificar necesidades ciudadanas respecto al trámite, seleccionar \"SI\", caso contrario, seleccionar \"NO\"\n- SUSCEPTIBILIDAD A CORRUPCIÓN: Si la institución dispone de información documentada sobre presuntos actos de corrupción, seleccionar \"SI\", caso contrario, seleccionar \"NO\"\n- VOLUMEN DE DEVOLUCIONES: Si la institución posee documentación sobre devoluciones del trámite en una cantidad significativa, seleccionar \"SI\", caso contrario, seleccionar \"NO\"\nPara que funcione la lista depelgable debe arrastrar la lista y la puntuación hacia abajo al último de los támites ingresados, no copiar"]
["En la columna puntaje total se realizará la sumatoria de los valores de los criterios básicos y adicionales. Este valor deberá registrarse en la plataforma GOB.EC"]

{"sheet":"DEMANDA ANUAL","index":1,"n_rows":152,"n_cols":4,"rows_kept":152,"cut":false,"hidden":false,"merged":[[0,0,0,3],[1,0,1,3]]}
["PRIORIZACIÓN DE TRÁMITES ADMINISTRATIVOS"]
["DEMANDA ANUAL"]
[]
["IDENTIFICADOR","TRÁMITE","DEMANDA ANUAL","PUNTAJE"]
["MH-042-02-01","Acumulación de Áreas de Régimen de Minería Artesanal Para la Modificación a Régimen de Pequeña Minería",0,0]
["MH-043-01-01","Acumulación de Áreas Mineras",0,0]
["MH-054-01-01","Ampliación de Evaluación Económica del Yacimiento de Concesiones de Mediana / Gran Minería",0,0]
["MH-025-02-02","Análisis de PCBs en aceite dieléctrico, empresa particular",0,0]
["MH-025-02-03","Análisis de PCBs en aceite dieléctrico, empresas eléctricas",0,0]
["MH-025-03-02","Análisis de residuos de glifosato en suelo o agua",0,0]
["MH-025-01-01","Análisis de residuos de hidrocarburos aromáticos policíclicos HAPs en agua o suelo",0,0]
["MH-025-03-01","Análisis de residuos de OCls y OPs por cromatografía de gases, en biotas, suelo o agua",0,0]
["MH-025-02-01","Análisis de residuos de PCBs en agua o suelo",0,0]
["MH-024-01-03","Análisis de tritio en muestras acuosas",0,0]
["MH-007-01-02","Aprobación de construcción de nuevas facilidades, ampliación, mejoramiento y o modificación de facilidades existentes. (actividades que no se encuentran dentro del presupuesto anual aprobado)",0,0]
["MERNNR-068-01-01","Aprobación de la caracterización de yacimientos por campo",0,0]
["MERNNR-067-01-02","Aprobación de la prolongación de Pruebas de Inyección de fluidos",0,0]
["MERNNR-067-01-03","Aprobación de la prolongación de Pruebas de Reinyección de fluidos",0,0]
["MERNNR-015-02-02","Aprobación de la reforma al programas de actividades y presupuestos de inversiones, costos y gastos anuales para empresas privadas",0,0]
["MERNNR-058-01-02","Aprobación de perforación de pozos de re-entry",0,0]
["MERNNR-015-02-01","Aprobación de programas de actividades y presupuestos de inversiones, costos, gastos anuales para empresas privadas",0,0]
["MERNNR-059-01-03","Aprobación de programas de cambio de diseño de perforación",0,0]
["MERNNR-059-01-02","Aprobación de programas de profundizaciones",0,0]
["MH-015-01-03","Aprobación del plan quinquenal para empresa pública Petroamazonas EP",0,0]
["MERNNR-015-02-03","Aprobación del plan quinquenal para empresas privadas",0,0]
["MERNNR-009-02-01","Aprobación para uso de gas natural en operaciones de explotación, transporte y/o quema",0,0]
["MH-010-01-01","Autorización para construcción de ductos principales",0,0]
["MH-003-01-16","Autorización para el ejercicio de actividades de elaboración, importación y comercialización de aceite agrícola (SPRAY OIL)",0,0]
["MH-047-01-01","Autorización para la Celebración del Contrato de Cesión en Garantía de Derechos Mineros",0,0]
["MERNNR-056-01-01","Autorización para la construcción de ductos secundarios de hidrocarburos",0,0]
["MH-021-01-05","Calibración de detectores fuera de planta central",0,0]
["MH-052-01-01","Cambio de Fase de Evaluación Económica del Yacimiento a Explotación, de Concesiones Mineras de Mediana y Gran Minería",0,0]
["MH-051-01-01","Cambio de Fase de Exploración Inicial a Exploración Avanzada, de Concesiones Mineras de Mediana / Gran Minería ",0,0]
["MH-024-02-02","Determinación de contaminación superficial en el manejo de fuentes abiertas",0,0]
["MH-024-01-06","Determinación de las características de radiactividad en desechos",0,0]
["MH-002-01-02","Disolución voluntaria de organizaciones sociales relacionadas con el ámbito de energía y recursos naturales no renovables",0,0]
["MH-044-01-01","División Material de una Concesión Minera",0,0]
["MH-022-01-02","Dosimetría personal externa de extremidades en anillo o en brazalete",0,0]
["MH-022-01-03","Dosimetría personal interna en vivo",0,0]
["MH-048-01-01","Ejecución de la Cesión en Garantía de Derechos Mineros",0,0]
["MERNNR-029-06-01","Emisión de autorización de construcción de instalaciones categoría 1 y 2",0,0]
["MH-023-01-01","Evaluación dosimétrica de radiación",0,0]
["MH-003-01-19","Extinción de la autorización para el ejercicio de actividades de elaboración, importación y comercialización de aceite agrícola (SPRAY OIL)",0,0]
["MH-027-01-01","Gestión de desechos radiactivos o fuentes radioactivas en desuso",0,0]
["MH-022-01-04","Gestión de pérdida o daño del dosímetro personal",0,0]
["MH-022-01-05","Gestión de pérdida o daño del porta dosímetro",0,0]
["MH-002-01-03","Inclusión y exclusión de miembros de organizaciones sociales relacionadas con el ámbito de energía y recursos naturales no renovables",0,0]
["MH-024-01-07","Medición de la concentración de radionúclidos en diferentes casos y caracterización de espectrómetros y fuentes radiactivas",0,0]
["MH-038-01-01","Modificación de la Capacidad de Procesamiento Autorizada de Plantas de Beneficio, Fundición, Refinación y Construcción de Relaveras",0,0]
["MERNNR-024-03-02","Monitoreo de fuentes radiactivas por punto monitoreado",0,0]
["MERNNR-024-03-01","Monitoreo de niveles de radiactividad natural o artificial",0,0]
["MH-013-01-01","Notificación del inicio de programas de actividad sísmica",0,0]
["MERNNR-070-01-01","Oficialización de reservas por contrato petrolero",0,0]
["MH-037-01-02","Otorgamiento de Autorización para la Instalación y Operación de Plantas de Beneficio, Fundición, Refinación y Construcción de Relaveras Para Personas Jurídicas",0,0]
["MH-037-01-03","Otorgamiento de Autorización para la Instalación y Operación de Plantas de Beneficio, Fundición, Refinación y Construcción de Relaveras Para Personas Jurídicas Extranjeras",0,0]
["MH-037-01-01","Otorgamiento de Autorización para la Instalación y Operación de Plantas de Beneficio, Fundición, Refinación y Construcción de Relaveras Para Personas Naturales",0,0]
["MH-039-01-03","Otorgamiento de Licencias de Comercialización y/o Exportación de Sustancias Mineras Metálicas o a la Exportación de Sustancias Minerales no Metálicas Para Personas Jurídicas Extranjeras",0,0]
["MH-050-01-01","Reducción de Permisos de Minería Artesanal, Concesiones Mineras, Libres Aprovechamientos de Materiales de Construcción Para Obras Públicas ",0,0]
["MH-003-01-10","Reforma de la autorización para el ejercicio de actividades de comercialización de gas licuado de petróleo (GLP)",0,0]
["MH-003-01-18","Reforma de la autorización para el ejercicio de actividades de elaboración, importación y comercialización de aceite agrícola (SPRAY OIL)",0,0]
["MH-003-01-13","Renovación de autorización para el ejercicio de actividades de elaboración, comercialización interna, importación y/o exportación de lubricantes",0,0]
["MH-003-01-17","Renovación de la autorización para el ejercicio de actividades de elaboración, importación y comercialización de aceite agrícola (SPRAY OIL)",0,0]
["MH-039-02-03","Renovación de Licencias de Comercialización y/o Exportación de Sustancias Mineras Metálicas o a la Exportación de Sustancias Minerales no Metálicas Para Personas Jurídicas Extranjeras",0,0]
["MH-003-01-09","Renovación de operación para el ejercicio de actividades de comercialización de gas licuado de petróleo (GLP)",0,0]
["MH-015-01-02","Aprobación de la reforma al programa de actividades y presupuesto de inversiones, costos y gastos anuales para empresa pública Petroamazonas EP",1,3]
["MH-021-01-03","Calibración de detectores por cada escala adicional en planta central",1,3]
["MH-021-01-06","Calibración de detectores por cada escala adicional fuera de planta central",1,3]
["MH-008-01-04","Aprobación de taponamiento y abandono temporal de pozos",2,3]
["MH-003-01-05","Autorización de operación para el ejercicio de actividades de comercialización de gas licuado de petróleo (GLP)",2,3]
["MH-021-01-01","Calibración de cámaras de ionización y activímetros",2,3]
["MH-021-01-04","Calibración de detectores de radiación tipo alarma",2,3]
["MH-003-01-04","Calificación para el ejercicio de actividades de comercialización de gas licuado de petróleo (GLP) en cilindros",2,3]
["MH-002-01-01","Constitución de organizaciones sociales relacionadas con el ámbito de energía y recursos naturales no renovables",2,3]
["MH-026-01-02","Irradiación de dosímetros",2,3]
["MH-002-01-04","Reforma de Estatutos de Organizaciones Sociales relacionadas con el ámbito de energía y recursos naturales no renovables",2,3]
["MH-024-01-01","Análisis de espectrometría gamma o muestra",3,3]
["MH-042-01-01","Modificación de Régimen de Minería Artesanal a Régimen de Pequeña Minería Para Personas Naturales",3,3]
["MH-002-01-05","Registro de Directiva de Organizaciones Sociales relacionadas con el ámbito de energía y recursos naturales no renovables",3,3]
["MH-011-01-04","Actualización de las tasas de producción de gas natural por pozo y yacimiento",4,3]
["MERNNR-059-01-04","Aprobación de programas alternos de perforación",4,3]
["MH-012-01-02","Aprobación de proyectos  para recuperación mejorada por yacimiento y campo",4,3]
["MH-003-01-08","Calificación para el ejercicio de actividades de comercialización de gas licuado de petróleo (GLP) al granel: Instalaciones centralizadas o GLP vehicular",4,3]
["MH-003-01-11","Extinción de la autorización para el ejercicio de actividades de comercialización de gas licuado de petróleo (GLP)",4,3]
["MH-003-01-03","Reforma de la autorización de operación de comercializadoras de derivados del petróleo, o derivados del petróleo y sus mezclas con biocombustibles, excepto el gas licuado de petróleo (GLP)",4,3]
["MERNNR-057-01-01","Aprobación de Reclasificación de Pozos",5,3]
["MH-024-01-04","Determinación alfa y beta grueso en aguas hasta 5 muestras",5,3]
["MH-019-02-03","Emisión de licencia institucional para fuentes abiertas",5,3]
["MH-003-01-06","Extinción de la autorización de operación de comercializadoras de derivados del petróleo, o derivados del petróleo y sus mezclas con biocombustibles, excepto el gas licuado de petróleo (GLP)",5,3]
["MH-037-02-01","Renovación de Autorización Para la Operación de Plantas de Beneficio, Fundición, Refinación y Relaveras",5,3]
["MH-045-01-01","Calificación bajo el régimen especial de pequeña minería ",6,3]
["MH-003-01-01","Calificación como comercializadoras de derivados de petróleo o derivados del petroleo y sus mezclas con biocombustibles",6,3]
["MH-003-01-15","Extinción de la autorización para el ejercicio de actividades de elaboración, comercialización interna, importación y/o exportación de lubricantes",6,3]
["MH-014-01-01","Inscripción de actos determinados en la ley de  hidrocarburos y su reglamento",7,3]
["MH-049-01-01","Renuncia de Derechos Mineros (Permisos de Minería Artesanal, Concesiones Mineras, Libres Aprovechamientos de Materiales de Construcción para Obra Pública, Operación de Plantas de Beneficio, Licencias de Comercialización)",7,3]
["MH-003-01-12","Autorización para el ejercicio de actividades de elaboración, comercialización interna, importación y/o exportación de lubricantes",8,6]
["MH-024-01-02","Identificación de contaminantes radiactivos y su actividad",8,6]
["MH-020-01-03","Inspección documental de seguridad radiológica para fuentes radiactivas categoría 5 (bajo riesgo radiológico)",8,6]
["MH-003-01-07","Renovación de autorización de operación de comercializadoras de derivados del petróleo, o derivados del petróleo y sus mezclas con biocombustibles, excepto el gas licuado de petróleo (GLP)",8,6]
["MH-039-02-01","Renovación de Licencias de Comercialización y/o Exportación de Sustancias Mineras Metálicas o a la Exportación de Sustancias Minerales no Metálicas Para Personas Naturales",8,6]
["MH-008-01-03","Aprobación de taponamiento y abandono definitivo de pozos",9,6]
["MH-019-02-04","Emisión de licencia institucional para fuentes selladas",9,6]
["MH-003-01-14","Reforma de la autorización para el ejercicio de actividades de elaboración, comercialización interna, importación y/o exportación de lubricantes",10,6]
["MERNNR-029-03-02","Emisión de autorización de re-exportación de equipos generadores de radiación ionizante",11,6]
["MH-039-01-01","Otorgamiento de Licencias de Comercialización y/o Exportación de Sustancias Mineras Metálicas o a la Exportación de Sustancias Minerales no Metálicas Para Personas Naturales",11,6]
["MH-024-02-03","Prueba de fuga en fuentes selladas más de 5 muestras",11,6]
["MH-026-01-01","Irradiación de muestras",12,6]
["MH-012-01-01","Aprobación de proyectos de Recuperación Secundaria",14,6]
["MH-009-01-01","Aprobación para uso del crudo en operaciones de explotación para empresas privadas",16,6]
["MERNNR-029-03-01","Emisión de autorización de re-exportación de fuentes radiactivas",16,6]
["MH-019-02-05","Emisión de licencia institucional para instalación y mantenimiento de equipos generadores y emisores de radiación ionizante",17,6]
["MERNNR-067-01-01","Aprobación de la prolongación de Pruebas de Producción",21,6]
["MH-016-01-01","Entrega de información hidrocarburífera ",21,6]
["MH-019-03-01","Emisión de licencia de importación para equipos emisores de radiación ionizante y material radiactivo",23,6]
["MH-003-01-02","Autorización de operación de comercializadoras de derivados del petróleo o derivados del petróleo y sus mezclas con biocombustibles, excepto el gas licuado de petróleo (GLP) por cada segmento de mercado",25,6]
["MH-019-02-02","Emisión de licencia institucional para equipos generadores de radiación ionizante para uso no médico",25,6]
["MH-039-02-02","Renovación de Licencias de Comercialización y/o Exportación de Sustancias Mineras Metálicas o a la Exportación de Sustancias Minerales no Metálicas Para Personas Jurídicas",27,6]
["MH-039-01-02","Otorgamiento de Licencias de Comercialización y/o Exportación de Sustancias Mineras Metálicas o a la Exportación de Sustancias Minerales no Metálicas Para Personas Jurídicas",29,6]
["MH-015-01-01","Aprobación del programa de actividades y presupuesto de inversiones, costos y gastos anuales para la empresa pública Petroamazonas EP",30,6]
["MERNNR-059-01-01","Aprobación de programas de side track",32,6]
["MH-019-01-03","Ampliación de licencia personal en materia de seguridad radiológica",35,6]
["MH-024-01-05","Determinación alfa y beta grueso en aguas más de 5 muestras",37,6]
["MH-007-01-01","Notificación de construcción de nuevas facilidades, ampliación, mejoramiento y o modificación de producción de facilidades existentes para el tratamiento de hidrocarburos que consten en el presupuesto anual aprobado de inversiones, costos y gastos",41,6]
["MERNNR-069-01-01","Aprobación de la legalización de cambios de zona productora",44,10]
["MH-019-03-02","Emisión de licencia de importación para equipos generadores de radiación ionizante",45,10]
["MH-024-02-01","Prueba de fuga en fuentes selladas hasta 5 muestras",46,10]
["MH-006-01-05","Notificación  de  programas alternos de pozos productores hidrocarburiferos, inyectores o re inyectores",54,10]
["MH-011-01-03","Actualización de las tasas de producción de petróleo por pozo y yacimiento",60,10]
["MERNNR-029-05-01","Emisión de autorización de importación de fuentes selladas",63,10]
["MH-006-01-01","Notificación de completación y pruebas iniciales",68,10]
["MH-046-01-01","Cesión y Transferencia de Derechos Mineros",72,10]
["MERNNR-058-01-01","Aprobación de perforación de pozos",77,10]
["MH-041-01-01","Extensión de la vigencia y/o de los volúmenes de explotación de la Autorización Temporal de Libre Aprovechamiento de Materiales de Construcción Para Obras Públicas Para Entidades Públicas",84,10]
["MH-029-01-01","Autorización de oficial de seguridad radiológica OSR",104,10]
["MH-020-01-02","Inspección documental de seguridad radiológica para equipos generadores de radiación ionizante",111,10]
["MH-011-01-02","Aprobación de las tasas de producción de gas natural por pozo y yacimiento",138,10]
["MERNNR-029-05-02","Emisión de autorización de importación de fuentes abiertas",161,10]
["MERNNR-029-04-01","Emisión de autorización de movilización de fuentes radiactivas",166,10]
["MH-006-01-03","Aprobación de reacondicionamientos de pozos productores hidrocarburiferos, inyectores o re inyectores",197,10]
["MH-019-01-04","Actualización de licencia personal en materia de seguridad radiológica",229,10]
["MH-040-01-01","Autorización Temporal de Libre Aprovechamiento de Materiales de Construcción Para Obras Públicas Para Entidades Gubernamentales",230,10]
["MH-006-01-04","Aprobación de  programas alternos de pozos productores hidrocarburiferos, inyectores o re inyectores",239,10]
["MH-011-01-01","Aprobación de las tasas de producción de petróleo por pozo y yacimiento",248,10]
["MH-019-02-01","Emisión licencia institucional para equipos generadores de radiación ionizante para uso médico",256,10]
["MH-021-01-02","Calibración de detectores en planta central",270,10]
["MH-005-01-01","Atención de solicitudes de acceso a la información pública",291,10]
["MH-019-01-01","Licencia personal en materia de seguridad radiológica por primera vez",477,10]
["MH-020-01-01","Inspección de seguridad radiológica",607,10]
["MERNNR-029-02-01","Emisión de autorización de importación de equipos generadores de radiación ionizante",633,10]
["MH-006-01-02","Notificación  de reacondicionamientos de pozos productores hidrocarburifero, inyectores o re inyectores",679,10]
["MH-019-01-02","Renovación de licencia personal en materia de seguridad radiológica",708,10]
["MH-022-01-01","Dosimetría personal externa de cuerpo entero",1197,10]
["MH-055-01-01","Capacitación en materia de seguridad radiológica",1551,10]

{"sheet":"VOLUMEN DE QUEJAS","index":2,"n_rows":152,"n_cols":6,"rows_kept":152,"cut":false,"hidden":false,"merged":[[0,0,0,5],[1,0,1,5]]}
["PRIORIZACIÓN DE TRÁMITES ADMINISTRATIVOS"]
["VOLUMEN DE QUEJAS"]
[]
["IDENTIFICADOR","TRÁMITE","VOLUMEN DEMANDA","VOLUMEN DE QUEJAS","PORCENTAJE","PUNTUACIÓN"]
["MH-042-02-01","Acumulación de Áreas de Régimen de Minería Artesanal Para la Modificación a Régimen de Pequeña Minería",0,0,0,0]
["MH-043-01-01","Acumulación de Áreas Mineras",0,0,0,0]
["MH-054-01-01","Ampliación de Evaluación Económica del Yacimiento de Concesiones de Mediana / Gran Minería",0,0,0,0]
["MH-025-02-02","Análisis de PCBs en aceite dieléctrico, empresa particular",0,0,0,0]
["MH-025-02-03","Análisis de PCBs en aceite dieléctrico, empresas eléctricas",0,0,0,0]
["MH-025-03-02","Análisis de residuos de glifosato en suelo o agua",0,0,0,0]
["MH-025-01-01","Análisis de residuos de hidrocarburos aromáticos policíclicos HAPs en agua o suelo",0,0,0,0]
["MH-025-03-01","Análisis de residuos de OCls y OPs por cromatografía de gases, en biotas, suelo o agua",0,0,0,0]
["MH-025-02-01","Análisis de residuos de PCBs en agua o suelo",0,0,0,0]
["MH-024-01-03","Análisis de tritio en muestras acuosas",0,0,0,0]
["MH-007-01-02","Aprobación de construcción de nuevas facilidades, ampliación, mejoramiento y o modificación de facilidades existentes. (actividades que no se encuentran dentro del presupuesto anual aprobado)",0,0,0,0]
["MERNNR-068-01-01","Aprobación de la caracterización de yacimientos por campo",0,0,0,0]
["MERNNR-067-01-02","Aprobación de la prolongación de Pruebas de Inyección de fluidos",0,0,0,0]
["MERNNR-067-01-03","Aprobación de la prolongación de Pruebas de Reinyección de fluidos",0,0,0,0]
["MERNNR-015-02-02","Aprobación de la reforma al programas de actividades y presupuestos de inversiones, costos y gastos anuales para empresas privadas",0,0,0,0]
["MERNNR-058-01-02","Aprobación de perforación de pozos de re-entry",0,0,0,0]
["MERNNR-015-02-01","Aprobación de programas de actividades y presupuestos de inversiones, costos, gastos anuales para empresas privadas",0,0,0,0]
["MERNNR-059-01-03","Aprobación de programas de cambio de diseño de perforación",0,0,0,0]
["MERNNR-059-01-02","Aprobación de programas de profundizaciones",0,0,0,0]
["MH-015-01-03","Aprobación del plan quinquenal para empresa pública Petroamazonas EP",0,0,0,0]
["MERNNR-015-02-03","Aprobación del plan quinquenal para empresas privadas",0,0,0,0]
["MERNNR-009-02-01","Aprobación para uso de gas natural en operaciones de explotación, transporte y/o quema",0,0,0,0]
["MH-010-01-01","Autorización para construcción de ductos principales",0,0,0,0]
["MH-003-01-16","Autorización para el ejercicio de actividades de elaboración, importación y comercialización de aceite agrícola (SPRAY OIL)",0,0,0,0]
["MH-047-01-01","Autorización para la Celebración del Contrato de Cesión en Garantía de Derechos Mineros",0,0,0,0]
["MERNNR-056-01-01","Autorización para la construcción de ductos secundarios de hidrocarburos",0,0,0,0]
["MH-021-01-05","Calibración de detectores fuera de planta central",0,0,0,0]
["MH-052-01-01","Cambio de Fase de Evaluación Económica del Yacimiento a Explotación, de Concesiones Mineras de Mediana y Gran Minería",0,0,0,0]
["MH-051-01-01","Cambio de Fase de Exploración Inicial a Exploración Avanzada, de Concesiones Mineras de Mediana / Gran Minería ",0,0,0,0]
["MH-024-02-02","Determinación de contaminación superficial en el manejo de fuentes abiertas",0,0,0,0]
["MH-024-01-06","Determinación de las características de radiactividad en desechos",0,0,0,0]
["MH-002-01-02","Disolución voluntaria de organizaciones sociales relacionadas con el ámbito de energía y recursos naturales no renovables",0,0,0,0]
["MH-044-01-01","División Material de una Concesión Minera",0,0,0,0]
["MH-022-01-02","Dosimetría personal externa de extremidades en anillo o en brazalete",0,0,0,0]
["MH-022-01-03","Dosimetría personal interna en vivo",0,0,0,0]
["MH-048-01-01","Ejecución de la Cesión en Garantía de Derechos Mineros",0,0,0,0]
["MERNNR-029-06-01","Emisión de autorización de construcción de instalaciones categoría 1 y 2",0,0,0,0]
["MH-023-01-01","Evaluación dosimétrica de radiación",0,0,0,0]
["MH-003-01-19","Extinción de la autorización para el ejercicio de actividades de elaboración, importación y comercialización de aceite agrícola (SPRAY OIL)",0,0,0,0]
["MH-027-01-01","Gestión de desechos radiactivos o fuentes radioactivas en desuso",0,0,0,0]
["MH-022-01-04","Gestión de pérdida o daño del dosímetro personal",0,0,0,0]
["MH-022-01-05","Gestión de pérdida o daño del porta dosímetro",0,0,0,0]
["MH-002-01-03","Inclusión y exclusión de miembros de organizaciones sociales relacionadas con el ámbito de energía y recursos naturales no renovables",0,0,0,0]
["MH-024-01-07","Medición de la concentración de radionúclidos en diferentes casos y caracterización de espectrómetros y fuentes radiactivas",0,0,0,0]
["MH-038-01-01","Modificación de la Capacidad de Procesamiento Autorizada de Plantas de Beneficio, Fundición, Refinación y Construcción de Relaveras",0,0,0,0]
["MERNNR-024-03-02","Monitoreo de fuentes radiactivas por punto monitoreado",0,0,0,0]
["MERNNR-024-03-01","Monitoreo de niveles de radiactividad natural o artificial",0,0,0,0]
["MH-013-01-01","Notificación del inicio de programas de actividad sísmica",0,0,0,0]
["MERNNR-070-01-01","Oficialización de reservas por contrato petrolero",0,0,0,0]
["MH-037-01-02","Otorgamiento de Autorización para la Instalación y Operación de Plantas de Beneficio, Fundición, Refinación y Construcción de Relaveras Para Personas Jurídicas",0,0,0,0]
["MH-037-01-03","Otorgamiento de Autorización para la Instalación y Operación de Plantas de Beneficio, Fundición, Refinación y Construcción de Relaveras Para Personas Jurídicas Extranjeras",0,0,0,0]
["MH-037-01-01","Otorgamiento de Autorización para la Instalación y Operación de Plantas de Beneficio, Fundición, Refinación y Construcción de Relaveras Para Personas Naturales",0,0,0,0]
["MH-039-01-03","Otorgamiento de Licencias de Comercialización y/o Exportación de Sustancias Mineras Metálicas o a la Exportación de Sustancias Minerales no Metálicas Para Personas Jurídicas Extranjeras",0,0,0,0]
["MH-050-01-01","Reducción de Permisos de Minería Artesanal, Concesiones Mineras, Libres Aprovechamientos de Materiales de Construcción Para Obras Públicas ",0,0,0,0]
["MH-003-01-10","Reforma de la autorización para el ejercicio de actividades de comercialización de gas licuado de petróleo (GLP)",0,0,0,0]
["MH-003-01-18","Reforma de la autorización para el ejercicio de actividades de elaboración, importación y comercialización de aceite agrícola (SPRAY OIL)",0,0,0,0]
["MH-003-01-13","Renovación de autorización para el ejercicio de actividades de elaboración, comercialización interna, importación y/o exportación de lubricantes",0,0,0,0]
["MH-003-01-17","Renovación de la autorización para el ejercicio de actividades de elaboración, importación y comercialización de aceite agrícola (SPRAY OIL)",0,0,0,0]
["MH-039-02-03","Renovación de Licencias de Comercialización y/o Exportación de Sustancias Mineras Metálicas o a la Exportación de Sustancias Minerales no Metálicas Para Personas Jurídicas Extranjeras",0,0,0,0]
["MH-003-01-09","Renovación de operación para el ejercicio de actividades de comercialización de gas licuado de petróleo (GLP)",0,0,0,0]
["MH-015-01-02","Aprobación de la reforma al programa de actividades y presupuesto de inversiones, costos y gastos anuales para empresa pública Petroamazonas EP",1,0,0,0]
["MH-021-01-03","Calibración de detectores por cada escala adicional en planta central",1,0,0,0]
["MH-021-01-06","Calibración de detectores por cada escala adicional fuera de planta central",1,0,0,0]
["MH-008-01-04","Aprobación de taponamiento y abandono temporal de pozos",2,0,0,0]
["MH-003-01-05","Autorización de operación para el ejercicio de actividades de comercialización de gas licuado de petróleo (GLP)",2,0,0,0]
["MH-021-01-01","Calibración de cámaras de ionización y activímetros",2,0,0,0]
["MH-021-01-04","Calibración de detectores de radiación tipo alarma",2,0,0,0]
["MH-003-01-04","Calificación para el ejercicio de actividades de comercialización de gas licuado de petróleo (GLP) en cilindros",2,0,0,0]
["MH-002-01-01","Constitución de organizaciones sociales relacionadas con el ámbito de energía y recursos naturales no renovables",2,0,0,0]
["MH-026-01-02","Irradiación de dosímetros",2,0,0,0]
["MH-002-01-04","Reforma de Estatutos de Organizaciones Sociales relacionadas con el ámbito de energía y recursos naturales no renovables",2,0,0,0]
["MH-024-01-01","Análisis de espectrometría gamma o muestra",3,0,0,0]
["MH-042-01-01","Modificación de Régimen de Minería Artesanal a Régimen de Pequeña Minería Para Personas Naturales",3,0,0,0]
["MH-002-01-05","Registro de Directiva de Organizaciones Sociales relacionadas con el ámbito de energía y recursos naturales no renovables",3,0,0,0]
["MH-011-01-04","Actualización de las tasas de producción de gas natural por pozo y yacimiento",4,0,0,0]
["MERNNR-059-01-04","Aprobación de programas alternos de perforación",4,0,0,0]
["MH-012-01-02","Aprobación de proyectos  para recuperación mejorada por yacimiento y campo",4,0,0,0]
["MH-003-01-08","Calificación para el ejercicio de actividades de comercialización de gas licuado de petróleo (GLP) al granel: Instalaciones centralizadas o GLP vehicular",4,0,0,0]
["MH-003-01-11","Extinción de la autorización para el ejercicio de actividades de comercialización de gas licuado de petróleo (GLP)",4,0,0,0]
["MH-003-01-03","Reforma de la autorización de operación de comercializadoras de derivados del petróleo, o derivados del petróleo y sus mezclas con biocombustibles, excepto el gas licuado de petróleo (GLP)",4,0,0,0]
["MERNNR-057-01-01","Aprobación de Reclasificación de Pozos",5,0,0,0]
["MH-024-01-04","Determinación alfa y beta grueso en aguas hasta 5 muestras",5,0,0,0]
["MH-019-02-03","Emisión de licencia institucional para fuentes abiertas",5,0,0,0]
["MH-003-01-06","Extinción de la autorización de operación de comercializadoras de derivados del petróleo, o derivados del petróleo y sus mezclas con biocombustibles, excepto el gas licuado de petróleo (GLP)",5,0,0,0]
["MH-037-02-01","Renovación de Autorización Para la Operación de Plantas de Beneficio, Fundición, Refinación y Relaveras",5,0,0,0]
["MH-045-01-01","Calificación bajo el régimen especial de pequeña minería ",6,0,0,0]
["MH-003-01-01","Calificación como comercializadoras de derivados de petróleo o derivados del petroleo y sus mezclas con biocombustibles",6,0,0,0]
["MH-003-01-15","Extinción de la autorización para el ejercicio de actividades de elaboración, comercialización interna, importación y/o exportación de lubricantes",6,0,0,0]
["MH-014-01-01","Inscripción de actos determinados en la ley de  hidrocarburos y su reglamento",7,0,0,0]
["MH-049-01-01","Renuncia de Derechos Mineros (Permisos de Minería Artesanal, Concesiones Mineras, Libres Aprovechamientos de Materiales de Construcción para Obra Pública, Operación de Plantas de Beneficio, Licencias de Comercialización)",7,0,0,0]
["MH-003-01-12","Autorización para el ejercicio de actividades de elaboración, comercialización interna, importación y/o exportación de lubricantes",8,0,0,0]
["MH-024-01-02","Identificación de contaminantes radiactivos y su actividad",8,0,0,0]
["MH-020-01-03","Inspección documental de seguridad radiológica para fuentes radiactivas categoría 5 (bajo riesgo radiológico)",8,0,0,0]
["MH-003-01-07","Renovación de autorización de operación de comercializadoras de derivados del petróleo, o derivados del petróleo y sus mezclas con biocombustibles, excepto el gas licuado de petróleo (GLP)",8,0,0,0]
["MH-039-02-01","Renovación de Licencias de Comercialización y/o Exportación de Sustancias Mineras Metálicas o a la Exportación de Sustancias Minerales no Metálicas Para Personas Naturales",8,0,0,0]
["MH-008-01-03","Aprobación de taponamiento y abandono definitivo de pozos",9,0,0,0]
["MH-019-02-04","Emisión de licencia institucional para fuentes selladas",9,0,0,0]
["MH-003-01-14","Reforma de la autorización para el ejercicio de actividades de elaboración, comercialización interna, importación y/o exportación de lubricantes",10,0,0,0]
["MERNNR-029-03-02","Emisión de autorización de re-exportación de equipos generadores de radiación ionizante",11,0,0,0]
["MH-039-01-01","Otorgamiento de Licencias de Comercialización y/o Exportación de Sustancias Mineras Metálicas o a la Exportación de Sustancias Minerales no Metálicas Para Personas Naturales",11,0,0,0]
["MH-024-02-03","Prueba de fuga en fuentes selladas más de 5 muestras",11,0,0,0]
["MH-026-01-01","Irradiación de muestras",12,0,0,0]
["MH-012-01-01","Aprobación de proyectos de Recuperación Secundaria",14,0,0,0]
["MH-009-01-01","Aprobación para uso del crudo en operaciones de explotación para empresas privadas",16,0,0,0]
["MERNNR-029-03-01","Emisión de autorización de re-exportación de fuentes radiactivas",16,0,0,0]
["MH-019-02-05","Emisión de licencia institucional para instalación y mantenimiento de equipos generadores y emisores de radiación ionizante",17,0,0,0]
["MERNNR-067-01-01","Aprobación de la prolongación de Pruebas de Producción",21,0,0,0]
["MH-016-01-01","Entrega de información hidrocarburífera ",21,0,0,0]
["MH-019-03-01","Emisión de licencia de importación para equipos emisores de radiación ionizante y material radiactivo",23,0,0,0]
["MH-003-01-02","Autorización de operación de comercializadoras de derivados del petróleo o derivados del petróleo y sus mezclas con biocombustibles, excepto el gas licuado de petróleo (GLP) por cada segmento de mercado",25,0,0,0]
["MH-019-02-02","Emisión de licencia institucional para equipos generadores de radiación ionizante para uso no médico",25,0,0,0]
["MH-039-02-02","Renovación de Licencias de Comercialización y/o Exportación de Sustancias Mineras Metálicas o a la Exportación de Sustancias Minerales no Metálicas Para Personas Jurídicas",27,0,0,0]
["MH-039-01-02","Otorgamiento de Licencias de Comercialización y/o Exportación de Sustancias Mineras Metálicas o a la Exportación de Sustancias Minerales no Metálicas Para Personas Jurídicas",29,0,0,0]
["MH-015-01-01","Aprobación del programa de actividades y presupuesto de inversiones, costos y gastos anuales para la empresa pública Petroamazonas EP",30,0,0,0]
["MERNNR-059-01-01","Aprobación de programas de side track",32,0,0,0]
["MH-019-01-03","Ampliación de licencia personal en materia de seguridad radiológica",35,0,0,0]
["MH-024-01-05","Determinación alfa y beta grueso en aguas más de 5 muestras",37,0,0,0]
["MH-007-01-01","Notificación de construcción de nuevas facilidades, ampliación, mejoramiento y o modificación de producción de facilidades existentes para el tratamiento de hidrocarburos que consten en el presupuesto anual aprobado de inversiones, costos y gastos",41,0,0,0]
["MERNNR-069-01-01","Aprobación de la legalización de cambios de zona productora",44,0,0,0]
["MH-019-03-02","Emisión de licencia de importación para equipos generadores de radiación ionizante",45,0,0,0]
["MH-024-02-01","Prueba de fuga en fuentes selladas hasta 5 muestras",46,0,0,0]
["MH-006-01-05","Notificación  de  programas alternos de pozos productores hidrocarburiferos, inyectores o re inyectores",54,0,0,0]
["MH-011-01-03","Actualización de las tasas de producción de petróleo por pozo y yacimiento",60,0,0,0]
["MERNNR-029-05-01","Emisión de autorización de importación de fuentes selladas",63,0,0,0]
["MH-006-01-01","Notificación de completación y pruebas iniciales",68,0,0,0]
["MH-046-01-01","Cesión y Transferencia de Derechos Mineros",72,0,0,0]
["MERNNR-058-01-01","Aprobación de perforación de pozos",77,0,0,0]
["MH-041-01-01","Extensión de la vigencia y/o de los volúmenes de explotación de la Autorización Temporal de Libre Aprovechamiento de Materiales de Construcción Para Obras Públicas Para Entidades Públicas",84,0,0,0]
["MH-029-01-01","Autorización de oficial de seguridad radiológica OSR",104,0,0,0]
["MH-020-01-02","Inspección documental de seguridad radiológica para equipos generadores de radiación ionizante",111,0,0,0]
["MH-011-01-02","Aprobación de las tasas de producción de gas natural por pozo y yacimiento",138,0,0,0]
["MERNNR-029-05-02","Emisión de autorización de importación de fuentes abiertas",161,0,0,0]
["MERNNR-029-04-01","Emisión de autorización de movilización de fuentes radiactivas",166,0,0,0]
["MH-006-01-03","Aprobación de reacondicionamientos de pozos productores hidrocarburiferos, inyectores o re inyectores",197,0,0,0]
["MH-019-01-04","Actualización de licencia personal en materia de seguridad radiológica",229,0,0,0]
["MH-040-01-01","Autorización Temporal de Libre Aprovechamiento de Materiales de Construcción Para Obras Públicas Para Entidades Gubernamentales",230,0,0,0]
["MH-006-01-04","Aprobación de  programas alternos de pozos productores hidrocarburiferos, inyectores o re inyectores",239,0,0,0]
["MH-011-01-01","Aprobación de las tasas de producción de petróleo por pozo y yacimiento",248,0,0,0]
["MH-019-02-01","Emisión licencia institucional para equipos generadores de radiación ionizante para uso médico",256,0,0,0]
["MH-021-01-02","Calibración de detectores en planta central",270,0,0,0]
["MH-005-01-01","Atención de solicitudes de acceso a la información pública",291,0,0,0]
["MH-019-01-01","Licencia personal en materia de seguridad radiológica por primera vez",477,0,0,0]
["MH-020-01-01","Inspección de seguridad radiológica",607,0,0,0]
["MERNNR-029-02-01","Emisión de autorización de importación de equipos generadores de radiación ionizante",633,0,0,0]
["MH-006-01-02","Notificación  de reacondicionamientos de pozos productores hidrocarburifero, inyectores o re inyectores",679,0,0,0]
["MH-019-01-02","Renovación de licencia personal en materia de seguridad radiológica",708,0,0,0]
["MH-022-01-01","Dosimetría personal externa de cuerpo entero",1197,0,0,0]
["MH-055-01-01","Capacitación en materia de seguridad radiológica",1551,0,0,0]

{"sheet":"COSTO ADMINISTRACIÓN PÚBLICA","index":3,"n_rows":153,"n_cols":9,"rows_kept":153,"cut":false,"hidden":false,"merged":[[0,0,0,5],[1,0,1,5],[3,0,4,0],[3,1,4,1],[3,2,3,4],[3,5,4,5]]}
["PRIORIZACIÓN DE TRÁMITES ADMINISTRATIVOS"]
["COSTOS PARA LA ADMINISTRACIÓN PÚBLICA"]
[]
["IDENTIFICADOR","TRÁMITE","INSUMOS PARA COSTO",null,null,"COSTO PARA LA ADM. PÚBLICA",null,"SBU",400]
[null,null,"TIEMPO (HORAS)","COSTO PERSONAL","COSTO RECURSOS"]
["MH-042-02-01","Acumulación de Áreas de Régimen de Minería Artesanal Para la Modificación a Régimen de Pequeña Minería",28.6,{"$f":"C6*$I$4/160","v":71.5},214.6,{"$f":"D6+E6","v":286.10000000000002}]
["MH-043-01-01","Acumulación de Áreas Mineras",28.6,{"$f":"C7*$I$4/160","v":71.5},214.6,{"$f":"D7+E7","v":286.10000000000002}]
["MH-054-01-01","Ampliación de Evaluación Económica del Yacimiento de Concesiones de Mediana / Gran Minería",32.35,80.875,415.39,496.26499999999999]
["MH-025-02-02","Análisis de PCBs en aceite dieléctrico, empresa particular",24.15,60.375,300.74,361.11500000000001]
["MH-025-02-03","Análisis de PCBs en aceite dieléctrico, empresas eléctricas",24.15,60.375,376.63,437.005]
["MH-025-03-02","Análisis de residuos de glifosato en suelo o agua",24.15,60.375,222.47,282.84500000000003]
["MH-025-01-01","Análisis de residuos de hidrocarburos aromáticos policíclicos HAPs en agua o suelo",32.35,80.875,415.39,496.26499999999999]
["MH-025-03-01","Análisis de residuos de OCls y OPs por cromatografía de gases, en biotas, suelo o agua",32.35,80.875,235.22,316.09500000000003]
["MH-025-02-01","Análisis de residuos de PCBs en agua o suelo",32.35,80.875,215.45,296.32499999999999]
["MH-024-01-03","Análisis de tritio en muestras acuosas",32.35,80.875,215.45,296.32499999999999]
["MH-007-01-02","Aprobación de construcción de nuevas facilidades, ampliación, mejoramiento y o modificación de facilidades existentes. (actividades que no se encuentran dentro del presupuesto anual aprobado)",32.35,80.875,215.45,296.32499999999999]
["MERNNR-068-01-01","Aprobación de la caracterización de yacimientos por campo",32.35,80.875,215.45,296.32499999999999]
["MERNNR-067-01-02","Aprobación de la prolongación de Pruebas de Inyección de fluidos",32.35,80.875,215.45,296.32499999999999]
["MERNNR-067-01-03","Aprobación de la prolongación de Pruebas de Reinyección de fluidos",32.35,80.875,215.45,296.32499999999999]
["MERNNR-015-02-02","Aprobación de la reforma al programas de actividades y presupuestos de inversiones, costos y gastos anuales para empresas privadas",32.35,80.875,235.22,316.09500000000003]
["MERNNR-058-01-02","Aprobación de perforación de pozos de re-entry",28.6,71.5,866.99,938.49]
["MERNNR-015-02-01","Aprobación de programas de actividades y presupuestos de inversiones, costos, gastos anuales para empresas privadas",28.6,71.5,247.27,318.77]
["MERNNR-059-01-03","Aprobación de programas de cambio de diseño de perforación",28.6,71.5,214.6,286.10000000000002]
["MERNNR-059-01-02","Aprobación de programas de profundizaciones",28.6,71.5,251.71,323.21000000000004]
["MH-015-01-03","Aprobación del plan quinquenal para empresa pública Petroamazonas EP",28.6,71.5,247.27,318.77]
["MERNNR-015-02-03","Aprobación del plan quinquenal para empresas privadas",28.6,71.5,247.27,318.77]
["MERNNR-009-02-01","Aprobación para uso de gas natural en operaciones de explotación, transporte y/o quema",28.6,71.5,247.27,318.77]
["MH-010-01-01","Autorización para construcción de ductos principales",28.6,71.5,250.47,321.97000000000003]
["MH-003-01-16","Autorización para el ejercicio de actividades de elaboración, importación y comercialización de aceite agrícola (SPRAY OIL)",28.6,71.5,250.47,321.97000000000003]
["MH-047-01-01","Autorización para la Celebración del Contrato de Cesión en Garantía de Derechos Mineros",28.6,71.5,214.6,286.10000000000002]
["MERNNR-056-01-01","Autorización para la construcción de ductos secundarios de hidrocarburos",28.6,71.5,214.6,286.10000000000002]
["MH-021-01-05","Calibración de detectores fuera de planta central",28.6,71.5,240.2,311.7]
["MH-052-01-01","Cambio de Fase de Evaluación Económica del Yacimiento a Explotación, de Concesiones Mineras de Mediana y Gran Minería",28.6,71.5,240.2,311.7]
["MH-051-01-01","Cambio de Fase de Exploración Inicial a Exploración Avanzada, de Concesiones Mineras de Mediana / Gran Minería ",28.6,71.5,240.2,311.7]
["MH-024-02-02","Determinación de contaminación superficial en el manejo de fuentes abiertas",28.6,71.5,250.47,321.97000000000003]
["MH-024-01-06","Determinación de las características de radiactividad en desechos",28.6,71.5,240.2,311.7]
["MH-002-01-02","Disolución voluntaria de organizaciones sociales relacionadas con el ámbito de energía y recursos naturales no renovables",28.6,71.5,240.2,311.7]
["MH-044-01-01","División Material de una Concesión Minera",28.6,71.5,240.2,311.7]
["MH-022-01-02","Dosimetría personal externa de extremidades en anillo o en brazalete",28.6,71.5,247.27,318.77]
["MH-022-01-03","Dosimetría personal interna en vivo",28.6,71.5,247.27,318.77]
["MH-048-01-01","Ejecución de la Cesión en Garantía de Derechos Mineros",28.6,71.5,866.99,938.49]
["MERNNR-029-06-01","Emisión de autorización de construcción de instalaciones categoría 1 y 2",28.6,71.5,372.99,444.49]
["MH-023-01-01","Evaluación dosimétrica de radiación",28.6,71.5,240.2,311.7]
["MH-003-01-19","Extinción de la autorización para el ejercicio de actividades de elaboración, importación y comercialización de aceite agrícola (SPRAY OIL)",28.6,71.5,240.2,311.7]
["MH-027-01-01","Gestión de desechos radiactivos o fuentes radioactivas en desuso",28.6,71.5,250.47,321.97000000000003]
["MH-022-01-04","Gestión de pérdida o daño del dosímetro personal",28.6,71.5,250.47,321.97000000000003]
["MH-022-01-05","Gestión de pérdida o daño del porta dosímetro",28.6,71.5,250.47,321.97000000000003]
["MH-002-01-03","Inclusión y exclusión de miembros de organizaciones sociales relacionadas con el ámbito de energía y recursos naturales no renovables",28.6,71.5,247.27,318.77]
["MH-024-01-07","Medición de la concentración de radionúclidos en diferentes casos y caracterización de espectrómetros y fuentes radiactivas",28.6,71.5,247.27,318.77]
["MH-038-01-01","Modificación de la Capacidad de Procesamiento Autorizada de Plantas de Beneficio, Fundición, Refinación y Construcción de Relaveras",24.2,60.5,245.78,306.27999999999997]
["MERNNR-024-03-02","Monitoreo de fuentes radiactivas por punto monitoreado",32.35,80.875,415.39,496.26499999999999]
["MERNNR-024-03-01","Monitoreo de niveles de radiactividad natural o artificial",28.6,71.5,174.36,245.86]
["MH-013-01-01","Notificación del inicio de programas de actividad sísmica",28.6,71.5,174.36,245.86]
["MERNNR-070-01-01","Oficialización de reservas por contrato petrolero",28.6,71.5,207.38,278.88]
["MH-037-01-02","Otorgamiento de Autorización para la Instalación y Operación de Plantas de Beneficio, Fundición, Refinación y Construcción de Relaveras Para Personas Jurídicas",28.6,71.5,174.36,245.86]
["MH-037-01-03","Otorgamiento de Autorización para la Instalación y Operación de Plantas de Beneficio, Fundición, Refinación y Construcción de Relaveras Para Personas Jurídicas Extranjeras",28.6,71.5,174.36,245.86]
["MH-037-01-01","Otorgamiento de Autorización para la Instalación y Operación de Plantas de Beneficio, Fundición, Refinación y Construcción de Relaveras Para Personas Naturales",24.15,60.375,620.36,680.73500000000001]
["MH-039-01-03","Otorgamiento de Licencias de Comercialización y/o Exportación de Sustancias Mineras Metálicas o a la Exportación de Sustancias Minerales no Metálicas Para Personas Jurídicas Extranjeras",28.6,71.5,207.38,278.88]
["MH-050-01-01","Reducción de Permisos de Minería Artesanal, Concesiones Mineras, Libres Aprovechamientos de Materiales de Construcción Para Obras Públicas ",24.15,60.375,387.96,448.33499999999998]
["MH-003-01-10","Reforma de la autorización para el ejercicio de actividades de comercialización de gas licuado de petróleo (GLP)",32.35,80.875,211.29,292.16499999999996]
["MH-003-01-18","Reforma de la autorización para el ejercicio de actividades de elaboración, importación y comercialización de aceite agrícola (SPRAY OIL)",32.35,80.875,211.29,292.16499999999996]
["MH-003-01-13","Renovación de autorización para el ejercicio de actividades de elaboración, comercialización interna, importación y/o exportación de lubricantes",32.35,80.875,211.29,292.16499999999996]
["MH-003-01-17","Renovación de la autorización para el ejercicio de actividades de elaboración, importación y comercialización de aceite agrícola (SPRAY OIL)",32.35,80.875,211.29,292.16499999999996]
["MH-039-02-03","Renovación de Licencias de Comercialización y/o Exportación de Sustancias Mineras Metálicas o a la Exportación de Sustancias Minerales no Metálicas Para Personas Jurídicas Extranjeras",32.35,80.875,211.29,292.16499999999996]
["MH-003-01-09","Renovación de operación para el ejercicio de actividades de comercialización de gas licuado de petróleo (GLP)",32.35,80.875,211.29,292.16499999999996]
["MH-015-01-02","Aprobación de la reforma al programa de actividades y presupuesto de inversiones, costos y gastos anuales para empresa pública Petroamazonas EP",24.15,60.375,775.59,835.96500000000003]
["MH-021-01-03","Calibración de detectores por cada escala adicional en planta central",28.6,71.5,174.36,245.86]
["MH-021-01-06","Calibración de detectores por cada escala adicional fuera de planta central",28.6,71.5,174.36,245.86]
["MH-008-01-04","Aprobación de taponamiento y abandono temporal de pozos",28.6,71.5,174.36,245.86]
["MH-003-01-05","Autorización de operación para el ejercicio de actividades de comercialización de gas licuado de petróleo (GLP)",24.15,60.375,258.81,319.185]
["MH-021-01-01","Calibración de cámaras de ionización y activímetros",24.15,{"$f":"C71*$I$4/160","v":60.375},232.15,{"$f":"D71+E71","v":292.52499999999998}]
["MH-021-01-04","Calibración de detectores de radiación tipo alarma",32.35,80.875,502.47,583.34500000000003]
["MH-003-01-04","Calificación para el ejercicio de actividades de comercialización de gas licuado de petróleo (GLP) en cilindros",24.15,60.375,770.32,830.69500000000005]
["MH-002-01-01","Constitución de organizaciones sociales relacionadas con el ámbito de energía y recursos naturales no renovables",28.6,71.5,257.12,328.62]
["MH-026-01-02","Irradiación de dosímetros",32.35,80.875,235.22,316.09500000000003]
["MH-002-01-04","Reforma de Estatutos de Organizaciones Sociales relacionadas con el ámbito de energía y recursos naturales no renovables",32.35,80.875,235.22,316.09500000000003]
["MH-024-01-01","Análisis de espectrometría gamma o muestra",32.35,80.875,235.22,316.09500000000003]
["MH-042-01-01","Modificación de Régimen de Minería Artesanal a Régimen de Pequeña Minería Para Personas Naturales",32.35,80.875,235.22,316.09500000000003]
["MH-002-01-05","Registro de Directiva de Organizaciones Sociales relacionadas con el ámbito de energía y recursos naturales no renovables",24.15,60.375,317.20999999999998,377.58499999999998]
["MH-011-01-04","Actualización de las tasas de producción de gas natural por pozo y yacimiento",32.35,80.875,330.64,411.51499999999999]
["MERNNR-059-01-04","Aprobación de programas alternos de perforación",32.35,80.875,330.34,411.21499999999997]
["MH-012-01-02","Aprobación de proyectos  para recuperación mejorada por yacimiento y campo",32.35,80.875,330.64,411.51499999999999]
["MH-003-01-08","Calificación para el ejercicio de actividades de comercialización de gas licuado de petróleo (GLP) al granel: Instalaciones centralizadas o GLP vehicular",24.15,60.375,426.19,486.565]
["MH-003-01-11","Extinción de la autorización para el ejercicio de actividades de comercialización de gas licuado de petróleo (GLP)",32.35,80.875,415.39,496.26499999999999]
["MH-003-01-03","Reforma de la autorización de operación de comercializadoras de derivados del petróleo, o derivados del petróleo y sus mezclas con biocombustibles, excepto el gas licuado de petróleo (GLP)",32.35,80.875,415.39,496.26499999999999]
["MERNNR-057-01-01","Aprobación de Reclasificación de Pozos",32.35,80.875,415.39,496.26499999999999]
["MH-024-01-04","Determinación alfa y beta grueso en aguas hasta 5 muestras",32.35,80.875,415.39,496.26499999999999]
["MH-019-02-03","Emisión de licencia institucional para fuentes abiertas",32.35,80.875,415.39,496.26499999999999]
["MH-003-01-06","Extinción de la autorización de operación de comercializadoras de derivados del petróleo, o derivados del petróleo y sus mezclas con biocombustibles, excepto el gas licuado de petróleo (GLP)",32.35,80.875,415.39,496.26499999999999]
["MH-037-02-01","Renovación de Autorización Para la Operación de Plantas de Beneficio, Fundición, Refinación y Relaveras",32.35,80.875,415.39,496.26499999999999]
["MH-045-01-01","Calificación bajo el régimen especial de pequeña minería ",32.35,80.875,415.39,496.26499999999999]
["MH-003-01-01","Calificación como comercializadoras de derivados de petróleo o derivados del petroleo y sus mezclas con biocombustibles",32.35,80.875,415.39,496.26499999999999]
["MH-003-01-15","Extinción de la autorización para el ejercicio de actividades de elaboración, comercialización interna, importación y/o exportación de lubricantes",32.35,80.875,415.39,496.26499999999999]
["MH-014-01-01","Inscripción de actos determinados en la ley de  hidrocarburos y su reglamento",32.35,80.875,415.39,496.26499999999999]
["MH-049-01-01","Renuncia de Derechos Mineros (Permisos de Minería Artesanal, Concesiones Mineras, Libres Aprovechamientos de Materiales de Construcción para Obra Pública, Operación de Plantas de Beneficio, Licencias de Comercialización)",32.35,80.875,415.39,496.26499999999999]
["MH-003-01-12","Autorización para el ejercicio de actividades de elaboración, comercialización interna, importación y/o exportación de lubricantes",32.35,80.875,415.39,496.26499999999999]
["MH-024-01-02","Identificación de contaminantes radiactivos y su actividad",32.35,80.875,415.39,496.26499999999999]
["MH-020-01-03","Inspección documental de seguridad radiológica para fuentes radiactivas categoría 5 (bajo riesgo radiológico)",28.6,71.5,251.71,323.21000000000004]
["MH-003-01-07","Renovación de autorización de operación de comercializadoras de derivados del petróleo, o derivados del petróleo y sus mezclas con biocombustibles, excepto el gas licuado de petróleo (GLP)",32.35,80.875,387.08,467.95499999999998]
["MH-039-02-01","Renovación de Licencias de Comercialización y/o Exportación de Sustancias Mineras Metálicas o a la Exportación de Sustancias Minerales no Metálicas Para Personas Naturales",24.15,60.375,300.74,361.11500000000001]
["MH-008-01-03","Aprobación de taponamiento y abandono definitivo de pozos",28.6,71.5,174.36,245.86]
["MH-019-02-04","Emisión de licencia institucional para fuentes selladas",28.6,71.5,174.36,245.86]
["MH-003-01-14","Reforma de la autorización para el ejercicio de actividades de elaboración, comercialización interna, importación y/o exportación de lubricantes",28.6,71.5,174.36,245.86]
["MERNNR-029-03-02","Emisión de autorización de re-exportación de equipos generadores de radiación ionizante",28.6,71.5,174.36,245.86]
["MH-039-01-01","Otorgamiento de Licencias de Comercialización y/o Exportación de Sustancias Mineras Metálicas o a la Exportación de Sustancias Minerales no Metálicas Para Personas Naturales",32.35,80.875,209.52,290.39499999999998]
["MH-024-02-03","Prueba de fuga en fuentes selladas más de 5 muestras",32.35,80.875,330.64,411.51499999999999]
["MH-026-01-01","Irradiación de muestras",32.35,80.875,330.64,411.51499999999999]
["MH-012-01-01","Aprobación de proyectos de Recuperación Secundaria",32.35,80.875,235.22,316.09500000000003]
["MH-009-01-01","Aprobación para uso del crudo en operaciones de explotación para empresas privadas",28.6,71.5,257.12,328.62]
["MERNNR-029-03-01","Emisión de autorización de re-exportación de fuentes radiactivas",28.6,71.5,243.09,314.59000000000003]
["MH-019-02-05","Emisión de licencia institucional para instalación y mantenimiento de equipos generadores y emisores de radiación ionizante",32.35,80.875,334.24,415.11500000000001]
["MERNNR-067-01-01","Aprobación de la prolongación de Pruebas de Producción",32.35,80.875,334.24,415.11500000000001]
["MH-016-01-01","Entrega de información hidrocarburífera ",32.35,80.875,334.24,415.11500000000001]
["MH-019-03-01","Emisión de licencia de importación para equipos emisores de radiación ionizante y material radiactivo",32.35,80.875,215.68,296.55500000000001]
["MH-003-01-02","Autorización de operación de comercializadoras de derivados del petróleo o derivados del petróleo y sus mezclas con biocombustibles, excepto el gas licuado de petróleo (GLP) por cada segmento de mercado",32.35,80.875,215.68,296.55500000000001]
["MH-019-02-02","Emisión de licencia institucional para equipos generadores de radiación ionizante para uso no médico",32.35,80.875,415.39,496.26499999999999]
["MH-039-02-02","Renovación de Licencias de Comercialización y/o Exportación de Sustancias Mineras Metálicas o a la Exportación de Sustancias Minerales no Metálicas Para Personas Jurídicas",32.35,80.875,235.22,316.09500000000003]
["MH-039-01-02","Otorgamiento de Licencias de Comercialización y/o Exportación de Sustancias Mineras Metálicas o a la Exportación de Sustancias Minerales no Metálicas Para Personas Jurídicas",24.15,60.375,325.27999999999997,385.65499999999997]
["MH-015-01-01","Aprobación del programa de actividades y presupuesto de inversiones, costos y gastos anuales para la empresa pública Petroamazonas EP",24.15,60.375,300.74,361.11500000000001]
["MERNNR-059-01-01","Aprobación de programas de side track",32.35,80.875,235.22,316.09500000000003]
["MH-019-01-03","Ampliación de licencia personal en materia de seguridad radiológica",32.35,80.875,235.22,316.09500000000003]
["MH-024-01-05","Determinación alfa y beta grueso en aguas más de 5 muestras",28.6,71.5,866.99,938.49]
["MH-007-01-01","Notificación de construcción de nuevas facilidades, ampliación, mejoramiento y o modificación de producción de facilidades existentes para el tratamiento de hidrocarburos que consten en el presupuesto anual aprobado de inversiones, costos y gastos",28.6,71.5,866.99,938.49]
["MERNNR-069-01-01","Aprobación de la legalización de cambios de zona productora",28.6,71.5,866.99,938.49]
["MH-019-03-02","Emisión de licencia de importación para equipos generadores de radiación ionizante",28.6,71.5,247.27,318.77]
["MH-024-02-01","Prueba de fuga en fuentes selladas hasta 5 muestras",28.6,71.5,201.89,273.39]
["MH-006-01-05","Notificación  de  programas alternos de pozos productores hidrocarburiferos, inyectores o re inyectores",28.6,71.5,240.2,311.7]
["MH-011-01-03","Actualización de las tasas de producción de petróleo por pozo y yacimiento",24.15,60.375,487.43,547.80500000000006]
["MERNNR-029-05-01","Emisión de autorización de importación de fuentes selladas",24.15,60.375,487.43,547.80500000000006]
["MH-006-01-01","Notificación de completación y pruebas iniciales",24.15,60.375,589.16,649.53499999999997]
["MH-046-01-01","Cesión y Transferencia de Derechos Mineros",24.15,60.375,472.88,533.255]
["MERNNR-058-01-01","Aprobación de perforación de pozos",24.15,60.375,472.88,533.255]
["MH-041-01-01","Extensión de la vigencia y/o de los volúmenes de explotación de la Autorización Temporal de Libre Aprovechamiento de Materiales de Construcción Para Obras Públicas Para Entidades Públicas",24.15,60.375,487.43,547.80500000000006]
["MH-029-01-01","Autorización de oficial de seguridad radiológica OSR",32.35,80.875,235.22,316.09500000000003]
["MH-020-01-02","Inspección documental de seguridad radiológica para equipos generadores de radiación ionizante",32.35,{"$f":"C135*$I$4/160","v":80.875},235.22,{"$f":"D135+E135","v":316.09500000000003}]
["MH-011-01-02","Aprobación de las tasas de producción de gas natural por pozo y yacimiento",24.15,60.375,691.18,751.55499999999995]
["MERNNR-029-05-02","Emisión de autorización de importación de fuentes abiertas",28.6,71.5,257.12,328.62]
["MERNNR-029-04-01","Emisión de autorización de movilización de fuentes radiactivas",28.6,71.5,174.36,245.86]
["MH-006-01-03","Aprobación de reacondicionamientos de pozos productores hidrocarburiferos, inyectores o re inyectores",28.6,71.5,174.36,245.86]
["MH-019-01-04","Actualización de licencia personal en materia de seguridad radiológica",28.6,71.5,174.36,245.86]
["MH-040-01-01","Autorización Temporal de Libre Aprovechamiento de Materiales de Construcción Para Obras Públicas Para Entidades Gubernamentales",28.6,71.5,174.36,245.86]
["MH-006-01-04","Aprobación de  programas alternos de pozos productores hidrocarburiferos, inyectores o re inyectores",28.6,71.5,257.12,328.62]
["MH-011-01-01","Aprobación de las tasas de producción de petróleo por pozo y yacimiento",28.6,71.5,174.36,245.86]
["MH-019-02-01","Emisión licencia institucional para equipos generadores de radiación ionizante para uso médico",28.6,71.5,174.36,245.86]
["MH-021-01-02","Calibración de detectores en planta central",24.15,60.375,487.43,547.80500000000006]
["MH-005-01-01","Atención de solicitudes de acceso a la información pública",28.6,71.5,174.36,245.86]
["MH-019-01-01","Licencia personal en materia de seguridad radiológica por primera vez",32.35,80.875,415.39,496.26499999999999]
["MH-020-01-01","Inspección de seguridad radiológica",24.15,60.375,472.88,533.255]
["MERNNR-029-02-01","Emisión de autorización de importación de equipos generadores de radiación ionizante",24.15,60.375,472.88,533.255]
["MH-006-01-02","Notificación  de reacondicionamientos de pozos productores hidrocarburifero, inyectores o re inyectores",24.15,60.375,472.88,533.255]
["MH-019-01-02","Renovación de licencia personal en materia de seguridad radiológica",28.6,71.5,174.36,245.86]
["MH-022-01-01","Dosimetría personal externa de cuerpo entero",24.15,60.375,506.51,566.88499999999999]
["MH-055-01-01","Capacitación en materia de seguridad radiológica",28.6,71.5,470.52,542.02]

{"sheet":"RESUMEN DE COSTOS AP","index":4,"n_rows":152,"n_cols":4,"rows_kept":152,"cut":false,"hidden":false,"merged":[[0,0,0,5],[1,0,1,5]]}
["PRIORIZACIÓN DE TRÁMITES ADMINISTRATIVOS"]
["COSTOS PARA LA ADMINISTRACIÓN PÚBLICA"]
[]
["IDENTIFICADOR","TRÁMITE","COSTO PARA LA ADM. PÚBLICA","PUNTUACIÓN"]
["MH-019-01-04","Actualización de licencia personal en materia de seguridad radiológica",245.86,5]
["MH-011-01-01","Aprobación de las tasas de producción de petróleo por pozo y yacimiento",245.86,5]
["MH-006-01-03","Aprobación de reacondicionamientos de pozos productores hidrocarburiferos, inyectores o re inyectores",245.86,5]
["MH-008-01-03","Aprobación de taponamiento y abandono definitivo de pozos",245.86,5]
["MH-008-01-04","Aprobación de taponamiento y abandono temporal de pozos",245.86,5]
["MH-005-01-01","Atención de solicitudes de acceso a la información pública",245.86,5]
["MH-040-01-01","Autorización Temporal de Libre Aprovechamiento de Materiales de Construcción Para Obras Públicas Para Entidades Gubernamentales",245.86,5]
["MH-021-01-03","Calibración de detectores por cada escala adicional en planta central",245.86,5]
["MH-021-01-06","Calibración de detectores por cada escala adicional fuera de planta central",245.86,5]
["MERNNR-029-04-01","Emisión de autorización de movilización de fuentes radiactivas",245.86,5]
["MERNNR-029-03-02","Emisión de autorización de re-exportación de equipos generadores de radiación ionizante",245.86,5]
["MH-019-02-04","Emisión de licencia institucional para fuentes selladas",245.86,5]
["MH-019-02-01","Emisión licencia institucional para equipos generadores de radiación ionizante para uso médico",245.86,5]
["MERNNR-024-03-01","Monitoreo de niveles de radiactividad natural o artificial",245.86,5]
["MH-013-01-01","Notificación del inicio de programas de actividad sísmica",245.86,5]
["MH-037-01-02","Otorgamiento de Autorización para la Instalación y Operación de Plantas de Beneficio, Fundición, Refinación y Construcción de Relaveras Para Personas Jurídicas",245.86,5]
["MH-037-01-03","Otorgamiento de Autorización para la Instalación y Operación de Plantas de Beneficio, Fundición, Refinación y Construcción de Relaveras Para Personas Jurídicas Extranjeras",245.86,5]
["MH-003-01-14","Reforma de la autorización para el ejercicio de actividades de elaboración, comercialización interna, importación y/o exportación de lubricantes",245.86,5]
["MH-019-01-02","Renovación de licencia personal en materia de seguridad radiológica",245.86,5]
["MH-024-02-01","Prueba de fuga en fuentes selladas hasta 5 muestras",273.39,5]
["MERNNR-070-01-01","Oficialización de reservas por contrato petrolero",278.88,5]
["MH-039-01-03","Otorgamiento de Licencias de Comercialización y/o Exportación de Sustancias Mineras Metálicas o a la Exportación de Sustancias Minerales no Metálicas Para Personas Jurídicas Extranjeras",278.88,5]
["MH-025-03-02","Análisis de residuos de glifosato en suelo o agua",282.84500000000003,5]
["MH-042-02-01","Acumulación de Áreas de Régimen de Minería Artesanal Para la Modificación a Régimen de Pequeña Minería",286.10000000000002,5]
["MH-043-01-01","Acumulación de Áreas Mineras",286.10000000000002,5]
["MERNNR-059-01-03","Aprobación de programas de cambio de diseño de perforación",286.10000000000002,5]
["MH-047-01-01","Autorización para la Celebración del Contrato de Cesión en Garantía de Derechos Mineros",286.10000000000002,5]
["MERNNR-056-01-01","Autorización para la construcción de ductos secundarios de hidrocarburos",286.10000000000002,5]
["MH-039-01-01","Otorgamiento de Licencias de Comercialización y/o Exportación de Sustancias Mineras Metálicas o a la Exportación de Sustancias Minerales no Metálicas Para Personas Naturales",290.39499999999998,5]
["MH-003-01-10","Reforma de la autorización para el ejercicio de actividades de comercialización de gas licuado de petróleo (GLP)",292.16499999999996,5]
["MH-003-01-18","Reforma de la autorización para el ejercicio de actividades de elaboración, importación y comercialización de aceite agrícola (SPRAY OIL)",292.16499999999996,5]
["MH-003-01-13","Renovación de autorización para el ejercicio de actividades de elaboración, comercialización interna, importación y/o exportación de lubricantes",292.16499999999996,5]
["MH-003-01-17","Renovación de la autorización para el ejercicio de actividades de elaboración, importación y comercialización de aceite agrícola (SPRAY OIL)",292.16499999999996,5]
["MH-039-02-03","Renovación de Licencias de Comercialización y/o Exportación de Sustancias Mineras Metálicas o a la Exportación de Sustancias Minerales no Metálicas Para Personas Jurídicas Extranjeras",292.16499999999996,5]
["MH-003-01-09","Renovación de operación para el ejercicio de actividades de comercialización de gas licuado de petróleo (GLP)",292.16499999999996,5]
["MH-021-01-01","Calibración de cámaras de ionización y activímetros",292.52499999999998,5]
["MH-025-02-01","Análisis de residuos de PCBs en agua o suelo",296.32499999999999,5]
["MH-024-01-03","Análisis de tritio en muestras acuosas",296.32499999999999,5]
["MH-007-01-02","Aprobación de construcción de nuevas facilidades, ampliación, mejoramiento y o modificación de facilidades existentes. (actividades que no se encuentran dentro del presupuesto anual aprobado)",296.32499999999999,5]
["MERNNR-068-01-01","Aprobación de la caracterización de yacimientos por campo",296.32499999999999,5]
["MERNNR-067-01-02","Aprobación de la prolongación de Pruebas de Inyección de fluidos",296.32499999999999,5]
["MERNNR-067-01-03","Aprobación de la prolongación de Pruebas de Reinyección de fluidos",296.32499999999999,5]
["MH-003-01-02","Autorización de operación de comercializadoras de derivados del petróleo o derivados del petróleo y sus mezclas con biocombustibles, excepto el gas licuado de petróleo (GLP) por cada segmento de mercado",296.55500000000001,5]
["MH-019-03-01","Emisión de licencia de importación para equipos emisores de radiación ionizante y material radiactivo",296.55500000000001,5]
["MH-038-01-01","Modificación de la Capacidad de Procesamiento Autorizada de Plantas de Beneficio, Fundición, Refinación y Construcción de Relaveras",306.27999999999997,5]
["MH-021-01-05","Calibración de detectores fuera de planta central",311.7,5]
["MH-052-01-01","Cambio de Fase de Evaluación Económica del Yacimiento a Explotación, de Concesiones Mineras de Mediana y Gran Minería",311.7,5]
["MH-051-01-01","Cambio de Fase de Exploración Inicial a Exploración Avanzada, de Concesiones Mineras de Mediana / Gran Minería ",311.7,5]
["MH-024-01-06","Determinación de las características de radiactividad en desechos",311.7,5]
["MH-002-01-02","Disolución voluntaria de organizaciones sociales relacionadas con el ámbito de energía y recursos naturales no renovables",311.7,5]
["MH-044-01-01","División Material de una Concesión Minera",311.7,5]
["MH-023-01-01","Evaluación dosimétrica de radiación",311.7,5]
["MH-003-01-19","Extinción de la autorización para el ejercicio de actividades de elaboración, importación y comercialización de aceite agrícola (SPRAY OIL)",311.7,5]
["MH-006-01-05","Notificación  de  programas alternos de pozos productores hidrocarburiferos, inyectores o re inyectores",311.7,5]
["MERNNR-029-03-01","Emisión de autorización de re-exportación de fuentes radiactivas",314.59000000000003,10]
["MH-019-01-03","Ampliación de licencia personal en materia de seguridad radiológica",316.09500000000003,10]
["MH-024-01-01","Análisis de espectrometría gamma o muestra",316.09500000000003,10]
["MH-025-03-01","Análisis de residuos de OCls y OPs por cromatografía de gases, en biotas, suelo o agua",316.09500000000003,10]
["MERNNR-015-02-02","Aprobación de la reforma al programas de actividades y presupuestos de inversiones, costos y gastos anuales para empresas privadas",316.09500000000003,10]
["MERNNR-059-01-01","Aprobación de programas de side track",316.09500000000003,10]
["MH-012-01-01","Aprobación de proyectos de Recuperación Secundaria",316.09500000000003,10]
["MH-029-01-01","Autorización de oficial de seguridad radiológica OSR",316.09500000000003,10]
["MH-020-01-02","Inspección documental de seguridad radiológica para equipos generadores de radiación ionizante",316.09500000000003,10]
["MH-026-01-02","Irradiación de dosímetros",316.09500000000003,10]
["MH-042-01-01","Modificación de Régimen de Minería Artesanal a Régimen de Pequeña Minería Para Personas Naturales",316.09500000000003,10]
["MH-002-01-04","Reforma de Estatutos de Organizaciones Sociales relacionadas con el ámbito de energía y recursos naturales no renovables",316.09500000000003,10]
["MH-039-02-02","Renovación de Licencias de Comercialización y/o Exportación de Sustancias Mineras Metálicas o a la Exportación de Sustancias Minerales no Metálicas Para Personas Jurídicas",316.09500000000003,10]
["MERNNR-015-02-01","Aprobación de programas de actividades y presupuestos de inversiones, costos, gastos anuales para empresas privadas",318.77,10]
["MH-015-01-03","Aprobación del plan quinquenal para empresa pública Petroamazonas EP",318.77,10]
["MERNNR-015-02-03","Aprobación del plan quinquenal para empresas privadas",318.77,10]
["MERNNR-009-02-01","Aprobación para uso de gas natural en operaciones de explotación, transporte y/o quema",318.77,10]
["MH-022-01-02","Dosimetría personal externa de extremidades en anillo o en brazalete",318.77,10]
["MH-022-01-03","Dosimetría personal interna en vivo",318.77,10]
["MH-019-03-02","Emisión de licencia de importación para equipos generadores de radiación ionizante",318.77,10]
["MH-002-01-03","Inclusión y exclusión de miembros de organizaciones sociales relacionadas con el ámbito de energía y recursos naturales no renovables",318.77,10]
["MH-024-01-07","Medición de la concentración de radionúclidos en diferentes casos y caracterización de espectrómetros y fuentes radiactivas",318.77,10]
["MH-003-01-05","Autorización de operación para el ejercicio de actividades de comercialización de gas licuado de petróleo (GLP)",319.185,10]
["MH-010-01-01","Autorización para construcción de ductos principales",321.97000000000003,10]
["MH-003-01-16","Autorización para el ejercicio de actividades de elaboración, importación y comercialización de aceite agrícola (SPRAY OIL)",321.97000000000003,10]
["MH-024-02-02","Determinación de contaminación superficial en el manejo de fuentes abiertas",321.97000000000003,10]
["MH-027-01-01","Gestión de desechos radiactivos o fuentes radioactivas en desuso",321.97000000000003,10]
["MH-022-01-04","Gestión de pérdida o daño del dosímetro personal",321.97000000000003,10]
["MH-022-01-05","Gestión de pérdida o daño del porta dosímetro",321.97000000000003,10]
["MERNNR-059-01-02","Aprobación de programas de profundizaciones",323.21000000000004,10]
["MH-020-01-03","Inspección documental de seguridad radiológica para fuentes radiactivas categoría 5 (bajo riesgo radiológico)",323.21000000000004,10]
["MH-006-01-04","Aprobación de  programas alternos de pozos productores hidrocarburiferos, inyectores o re inyectores",328.62,10]
["MH-009-01-01","Aprobación para uso del crudo en operaciones de explotación para empresas privadas",328.62,10]
["MH-002-01-01","Constitución de organizaciones sociales relacionadas con el ámbito de energía y recursos naturales no renovables",328.62,10]
["MERNNR-029-05-02","Emisión de autorización de importación de fuentes abiertas",328.62,10]
["MH-025-02-02","Análisis de PCBs en aceite dieléctrico, empresa particular",361.11500000000001,10]
["MH-015-01-01","Aprobación del programa de actividades y presupuesto de inversiones, costos y gastos anuales para la empresa pública Petroamazonas EP",361.11500000000001,10]
["MH-039-02-01","Renovación de Licencias de Comercialización y/o Exportación de Sustancias Mineras Metálicas o a la Exportación de Sustancias Minerales no Metálicas Para Personas Naturales",361.11500000000001,10]
["MH-002-01-05","Registro de Directiva de Organizaciones Sociales relacionadas con el ámbito de energía y recursos naturales no renovables",377.58499999999998,10]
["MH-039-01-02","Otorgamiento de Licencias de Comercialización y/o Exportación de Sustancias Mineras Metálicas o a la Exportación de Sustancias Minerales no Metálicas Para Personas Jurídicas",385.65499999999997,10]
["MERNNR-059-01-04","Aprobación de programas alternos de perforación",411.21499999999997,10]
["MH-011-01-04","Actualización de las tasas de producción de gas natural por pozo y yacimiento",411.51499999999999,10]
["MH-012-01-02","Aprobación de proyectos  para recuperación mejorada por yacimiento y campo",411.51499999999999,10]
["MH-026-01-01","Irradiación de muestras",411.51499999999999,10]
["MH-024-02-03","Prueba de fuga en fuentes selladas más de 5 muestras",411.51499999999999,10]
["MERNNR-067-01-01","Aprobación de la prolongación de Pruebas de Producción",415.11500000000001,20]
["MH-019-02-05","Emisión de licencia institucional para instalación y mantenimiento de equipos generadores y emisores de radiación ionizante",415.11500000000001,20]
["MH-016-01-01","Entrega de información hidrocarburífera ",415.11500000000001,20]
["MH-025-02-03","Análisis de PCBs en aceite dieléctrico, empresas eléctricas",437.005,20]
["MERNNR-029-06-01","Emisión de autorización de construcción de instalaciones categoría 1 y 2",444.49,20]
["MH-050-01-01","Reducción de Permisos de Minería Artesanal, Concesiones Mineras, Libres Aprovechamientos de Materiales de Construcción Para Obras Públicas ",448.33499999999998,20]
["MH-003-01-07","Renovación de autorización de operación de comercializadoras de derivados del petróleo, o derivados del petróleo y sus mezclas con biocombustibles, excepto el gas licuado de petróleo (GLP)",467.95499999999998,20]
["MH-003-01-08","Calificación para el ejercicio de actividades de comercialización de gas licuado de petróleo (GLP) al granel: Instalaciones centralizadas o GLP vehicular",486.565,20]
["MH-054-01-01","Ampliación de Evaluación Económica del Yacimiento de Concesiones de Mediana / Gran Minería",496.26499999999999,20]
["MH-025-01-01","Análisis de residuos de hidrocarburos aromáticos policíclicos HAPs en agua o suelo",496.26499999999999,20]
["MERNNR-057-01-01","Aprobación de Reclasificación de Pozos",496.26499999999999,20]
["MH-003-01-12","Autorización para el ejercicio de actividades de elaboración, comercialización interna, importación y/o exportación de lubricantes",496.26499999999999,20]
["MH-045-01-01","Calificación bajo el régimen especial de pequeña minería ",496.26499999999999,20]
["MH-003-01-01","Calificación como comercializadoras de derivados de petróleo o derivados del petroleo y sus mezclas con biocombustibles",496.26499999999999,20]
["MH-024-01-04","Determinación alfa y beta grueso en aguas hasta 5 muestras",496.26499999999999,20]
["MH-019-02-02","Emisión de licencia institucional para equipos generadores de radiación ionizante para uso no médico",496.26499999999999,20]
["MH-019-02-03","Emisión de licencia institucional para fuentes abiertas",496.26499999999999,20]
["MH-003-01-06","Extinción de la autorización de operación de comercializadoras de derivados del petróleo, o derivados del petróleo y sus mezclas con biocombustibles, excepto el gas licuado de petróleo (GLP)",496.26499999999999,20]
["MH-003-01-11","Extinción de la autorización para el ejercicio de actividades de comercialización de gas licuado de petróleo (GLP)",496.26499999999999,20]
["MH-003-01-15","Extinción de la autorización para el ejercicio de actividades de elaboración, comercialización interna, importación y/o exportación de lubricantes",496.26499999999999,20]
["MH-024-01-02","Identificación de contaminantes radiactivos y su actividad",496.26499999999999,20]
["MH-014-01-01","Inscripción de actos determinados en la ley de  hidrocarburos y su reglamento",496.26499999999999,20]
["MH-019-01-01","Licencia personal en materia de seguridad radiológica por primera vez",496.26499999999999,20]
["MERNNR-024-03-02","Monitoreo de fuentes radiactivas por punto monitoreado",496.26499999999999,20]
["MH-003-01-03","Reforma de la autorización de operación de comercializadoras de derivados del petróleo, o derivados del petróleo y sus mezclas con biocombustibles, excepto el gas licuado de petróleo (GLP)",496.26499999999999,20]
["MH-037-02-01","Renovación de Autorización Para la Operación de Plantas de Beneficio, Fundición, Refinación y Relaveras",496.26499999999999,20]
["MH-049-01-01","Renuncia de Derechos Mineros (Permisos de Minería Artesanal, Concesiones Mineras, Libres Aprovechamientos de Materiales de Construcción para Obra Pública, Operación de Plantas de Beneficio, Licencias de Comercialización)",496.26499999999999,20]
["MERNNR-058-01-01","Aprobación de perforación de pozos",533.255,20]
["MH-046-01-01","Cesión y Transferencia de Derechos Mineros",533.255,20]
["MERNNR-029-02-01","Emisión de autorización de importación de equipos generadores de radiación ionizante",533.255,20]
["MH-020-01-01","Inspección de seguridad radiológica",533.255,20]
["MH-006-01-02","Notificación  de reacondicionamientos de pozos productores hidrocarburifero, inyectores o re inyectores",533.255,20]
["MH-055-01-01","Capacitación en materia de seguridad radiológica",542.02,20]
["MH-011-01-03","Actualización de las tasas de producción de petróleo por pozo y yacimiento",547.80500000000006,20]
["MH-021-01-02","Calibración de detectores en planta central",547.80500000000006,20]
["MERNNR-029-05-01","Emisión de autorización de importación de fuentes selladas",547.80500000000006,20]
["MH-041-01-01","Extensión de la vigencia y/o de los volúmenes de explotación de la Autorización Temporal de Libre Aprovechamiento de Materiales de Construcción Para Obras Públicas Para Entidades Públicas",547.80500000000006,20]
["MH-022-01-01","Dosimetría personal externa de cuerpo entero",566.88499999999999,20]
["MH-021-01-04","Calibración de detectores de radiación tipo alarma",583.34500000000003,20]
["MH-006-01-01","Notificación de completación y pruebas iniciales",649.53499999999997,20]
["MH-037-01-01","Otorgamiento de Autorización para la Instalación y Operación de Plantas de Beneficio, Fundición, Refinación y Construcción de Relaveras Para Personas Naturales",680.73500000000001,20]
["MH-011-01-02","Aprobación de las tasas de producción de gas natural por pozo y yacimiento",751.55499999999995,20]
["MH-003-01-04","Calificación para el ejercicio de actividades de comercialización de gas licuado de petróleo (GLP) en cilindros",830.69500000000005,20]
["MH-015-01-02","Aprobación de la reforma al programa de actividades y presupuesto de inversiones, costos y gastos anuales para empresa pública Petroamazonas EP",835.96500000000003,20]
["MERNNR-069-01-01","Aprobación de la legalización de cambios de zona productora",938.49,20]
["MERNNR-058-01-02","Aprobación de perforación de pozos de re-entry",938.49,20]
["MH-024-01-05","Determinación alfa y beta grueso en aguas más de 5 muestras",938.49,20]
["MH-048-01-01","Ejecución de la Cesión en Garantía de Derechos Mineros",938.49,20]
["MH-007-01-01","Notificación de construcción de nuevas facilidades, ampliación, mejoramiento y o modificación de producción de facilidades existentes para el tratamiento de hidrocarburos que consten en el presupuesto anual aprobado de inversiones, costos y gastos",938.49,20]

{"sheet":"AUXILIAR COSTO ADMINISTRACIÓN","index":5,"n_rows":20,"n_cols":3,"rows_kept":20,"cut":false,"hidden":false,"merged":[[1,1,1,2]]}
[]
["TRÁMITE:"]
["NO.","ACTIVIDAD","TIEMPO (HORAS)"]
[1,"a.- Recepción de trámites e ingreso al sistema de gestión documental QUIPUX",0.15]
[2,"b.- Análisis técnico y legal de la solicitud, documentos habilitantes",6]
[3,"c.- Solicitud de informes a la Agencia de Regulación y Control Minero.",1]
[4,"d.- Validación de los informes técnico, económico, catastral y/o legal.",6]
[5,"e.- Verificación  de procedencia desde la Subsecretaría de Minería Artesanal y Pequeña Minería",6]
[6,"f.- Emisión de la Resolución y archivo del expediente.",5]
[7]
[8]
[9]
[10]
[11]
[12]
[13]
[14]
[15]
[]
[null,"SUMATORIA ACTIVIDADES",{"$f":"SUM(C4:C19)","v":24.15}]

{"sheet":"TIEMPO DE RESPUESTA","index":6,"n_rows":152,"n_cols":4,"rows_kept":152,"cut":false,"hidden":false,"merged":[[0,0,0,3],[1,0,1,3]]}
["PRIORIZACIÓN DE TRÁMITES ADMINISTRATIVOS"]
["TIEMPO DE RESPUESTA"]
[]
["IDENTIFICADOR","TRÁMITE","TIEMPO RESPUESTA (horas laborables)","PUNTUACIÓN"]
["MH-042-02-01","Acumulación de Áreas de Régimen de Minería Artesanal Para la Modificación a Régimen de Pequeña Minería",600,30]
["MH-043-01-01","Acumulación de Áreas Mineras",600,30]
["MH-054-01-01","Ampliación de Evaluación Económica del Yacimiento de Concesiones de Mediana / Gran Minería",480,30]
["MH-025-02-02","Análisis de PCBs en aceite dieléctrico, empresa particular",40,0]
["MH-025-02-03","Análisis de PCBs en aceite dieléctrico, empresas eléctricas",80,30]
["MH-025-03-02","Análisis de residuos de glifosato en suelo o agua",40,0]
["MH-025-01-01","Análisis de residuos de hidrocarburos aromáticos policíclicos HAPs en agua o suelo",40,0]
["MH-025-03-01","Análisis de residuos de OCls y OPs por cromatografía de gases, en biotas, suelo o agua",40,0]
["MH-025-02-01","Análisis de residuos de PCBs en agua o suelo",40,0]
["MH-024-01-03","Análisis de tritio en muestras acuosas",120,30]
["MH-007-01-02","Aprobación de construcción de nuevas facilidades, ampliación, mejoramiento y o modificación de facilidades existentes. (actividades que no se encuentran dentro del presupuesto anual aprobado)",240,30]
["MERNNR-068-01-01","Aprobación de la caracterización de yacimientos por campo",360,30]
["MERNNR-067-01-02","Aprobación de la prolongación de Pruebas de Inyección de fluidos",240,30]
["MERNNR-067-01-03","Aprobación de la prolongación de Pruebas de Reinyección de fluidos",240,30]
["MERNNR-015-02-02","Aprobación de la reforma al programas de actividades y presupuestos de inversiones, costos y gastos anuales para empresas privadas",720,30]
["MERNNR-058-01-02","Aprobación de perforación de pozos de re-entry",120,30]
["MERNNR-015-02-01","Aprobación de programas de actividades y presupuestos de inversiones, costos, gastos anuales para empresas privadas",720,30]
["MERNNR-059-01-03","Aprobación de programas de cambio de diseño de perforación",120,30]
["MERNNR-059-01-02","Aprobación de programas de profundizaciones",120,30]
["MH-015-01-03","Aprobación del plan quinquenal para empresa pública Petroamazonas EP",720,30]
["MERNNR-015-02-03","Aprobación del plan quinquenal para empresas privadas",720,30]
["MERNNR-009-02-01","Aprobación para uso de gas natural en operaciones de explotación, transporte y/o quema",240,30]
["MH-010-01-01","Autorización para construcción de ductos principales",120,30]
["MH-003-01-16","Autorización para el ejercicio de actividades de elaboración, importación y comercialización de aceite agrícola (SPRAY OIL)",120,30]
["MH-047-01-01","Autorización para la Celebración del Contrato de Cesión en Garantía de Derechos Mineros",600,30]
["MERNNR-056-01-01","Autorización para la construcción de ductos secundarios de hidrocarburos",240,30]
["MH-021-01-05","Calibración de detectores fuera de planta central",160,30]
["MH-052-01-01","Cambio de Fase de Evaluación Económica del Yacimiento a Explotación, de Concesiones Mineras de Mediana y Gran Minería",480,30]
["MH-051-01-01","Cambio de Fase de Exploración Inicial a Exploración Avanzada, de Concesiones Mineras de Mediana / Gran Minería ",480,30]
["MH-024-02-02","Determinación de contaminación superficial en el manejo de fuentes abiertas",120,30]
["MH-024-01-06","Determinación de las características de radiactividad en desechos",120,30]
["MH-002-01-02","Disolución voluntaria de organizaciones sociales relacionadas con el ámbito de energía y recursos naturales no renovables",80,30]
["MH-044-01-01","División Material de una Concesión Minera",600,30]
["MH-022-01-02","Dosimetría personal externa de extremidades en anillo o en brazalete",240,30]
["MH-022-01-03","Dosimetría personal interna en vivo",120,30]
["MH-048-01-01","Ejecución de la Cesión en Garantía de Derechos Mineros",600,30]
["MERNNR-029-06-01","Emisión de autorización de construcción de instalaciones categoría 1 y 2",240,30]
["MH-023-01-01","Evaluación dosimétrica de radiación",80,30]
["MH-003-01-19","Extinción de la autorización para el ejercicio de actividades de elaboración, importación y comercialización de aceite agrícola (SPRAY OIL)",120,30]
["MH-027-01-01","Gestión de desechos radiactivos o fuentes radioactivas en desuso",120,30]
["MH-022-01-04","Gestión de pérdida o daño del dosímetro personal",240,30]
["MH-022-01-05","Gestión de pérdida o daño del porta dosímetro",240,30]
["MH-002-01-03","Inclusión y exclusión de miembros de organizaciones sociales relacionadas con el ámbito de energía y recursos naturales no renovables",80,30]
["MH-024-01-07","Medición de la concentración de radionúclidos en diferentes casos y caracterización de espectrómetros y fuentes radiactivas",120,30]
["MH-038-01-01","Modificación de la Capacidad de Procesamiento Autorizada de Plantas de Beneficio, Fundición, Refinación y Construcción de Relaveras",600,30]
["MERNNR-024-03-02","Monitoreo de fuentes radiactivas por punto monitoreado",120,30]
["MERNNR-024-03-01","Monitoreo de niveles de radiactividad natural o artificial",120,30]
["MH-013-01-01","Notificación del inicio de programas de actividad sísmica",120,30]
["MERNNR-070-01-01","Oficialización de reservas por contrato petrolero",240,30]
["MH-037-01-02","Otorgamiento de Autorización para la Instalación y Operación de Plantas de Beneficio, Fundición, Refinación y Construcción de Relaveras Para Personas Jurídicas",600,30]
["MH-037-01-03","Otorgamiento de Autorización para la Instalación y Operación de Plantas de Beneficio, Fundición, Refinación y Construcción de Relaveras Para Personas Jurídicas Extranjeras",600,30]
["MH-037-01-01","Otorgamiento de Autorización para la Instalación y Operación de Plantas de Beneficio, Fundición, Refinación y Construcción de Relaveras Para Personas Naturales",600,30]
["MH-039-01-03","Otorgamiento de Licencias de Comercialización y/o Exportación de Sustancias Mineras Metálicas o a la Exportación de Sustancias Minerales no Metálicas Para Personas Jurídicas Extranjeras",600,30]
["MH-050-01-01","Reducción de Permisos de Minería Artesanal, Concesiones Mineras, Libres Aprovechamientos de Materiales de Construcción Para Obras Públicas ",600,30]
["MH-003-01-10","Reforma de la autorización para el ejercicio de actividades de comercialización de gas licuado de petróleo (GLP)",120,30]
["MH-003-01-18","Reforma de la autorización para el ejercicio de actividades de elaboración, importación y comercialización de aceite agrícola (SPRAY OIL)",120,30]
["MH-003-01-13","Renovación de autorización para el ejercicio de actividades de elaboración, comercialización interna, importación y/o exportación de lubricantes",120,30]
["MH-003-01-17","Renovación de la autorización para el ejercicio de actividades de elaboración, importación y comercialización de aceite agrícola (SPRAY OIL)",120,30]
["MH-039-02-03","Renovación de Licencias de Comercialización y/o Exportación de Sustancias Mineras Metálicas o a la Exportación de Sustancias Minerales no Metálicas Para Personas Jurídicas Extranjeras",600,30]
["MH-003-01-09","Renovación de operación para el ejercicio de actividades de comercialización de gas licuado de petróleo (GLP)",120,30]
["MH-015-01-02","Aprobación de la reforma al programa de actividades y presupuesto de inversiones, costos y gastos anuales para empresa pública Petroamazonas EP",720,30]
["MH-021-01-03","Calibración de detectores por cada escala adicional en planta central",160,30]
["MH-021-01-06","Calibración de detectores por cada escala adicional fuera de planta central",160,30]
["MH-008-01-04","Aprobación de taponamiento y abandono temporal de pozos",120,30]
["MH-003-01-05","Autorización de operación para el ejercicio de actividades de comercialización de gas licuado de petróleo (GLP)",120,30]
["MH-021-01-01","Calibración de cámaras de ionización y activímetros",240,30]
["MH-021-01-04","Calibración de detectores de radiación tipo alarma",160,30]
["MH-003-01-04","Calificación para el ejercicio de actividades de comercialización de gas licuado de petróleo (GLP) en cilindros",120,30]
["MH-002-01-01","Constitución de organizaciones sociales relacionadas con el ámbito de energía y recursos naturales no renovables",80,30]
["MH-026-01-02","Irradiación de dosímetros",64,30]
["MH-002-01-04","Reforma de Estatutos de Organizaciones Sociales relacionadas con el ámbito de energía y recursos naturales no renovables",80,30]
["MH-024-01-01","Análisis de espectrometría gamma o muestra",120,30]
["MH-042-01-01","Modificación de Régimen de Minería Artesanal a Régimen de Pequeña Minería Para Personas Naturales",600,30]
["MH-002-01-05","Registro de Directiva de Organizaciones Sociales relacionadas con el ámbito de energía y recursos naturales no renovables",80,30]
["MH-011-01-04","Actualización de las tasas de producción de gas natural por pozo y yacimiento",240,30]
["MERNNR-059-01-04","Aprobación de programas alternos de perforación",120,30]
["MH-012-01-02","Aprobación de proyectos  para recuperación mejorada por yacimiento y campo",360,30]
["MH-003-01-08","Calificación para el ejercicio de actividades de comercialización de gas licuado de petróleo (GLP) al granel: Instalaciones centralizadas o GLP vehicular",120,30]
["MH-003-01-11","Extinción de la autorización para el ejercicio de actividades de comercialización de gas licuado de petróleo (GLP)",120,30]
["MH-003-01-03","Reforma de la autorización de operación de comercializadoras de derivados del petróleo, o derivados del petróleo y sus mezclas con biocombustibles, excepto el gas licuado de petróleo (GLP)",120,30]
["MERNNR-057-01-01","Aprobación de Reclasificación de Pozos",240,30]
["MH-024-01-04","Determinación alfa y beta grueso en aguas hasta 5 muestras",120,30]
["MH-019-02-03","Emisión de licencia institucional para fuentes abiertas",80,30]
["MH-003-01-06","Extinción de la autorización de operación de comercializadoras de derivados del petróleo, o derivados del petróleo y sus mezclas con biocombustibles, excepto el gas licuado de petróleo (GLP)",120,30]
["MH-037-02-01","Renovación de Autorización Para la Operación de Plantas de Beneficio, Fundición, Refinación y Relaveras",600,30]
["MH-045-01-01","Calificación bajo el régimen especial de pequeña minería ",600,30]
["MH-003-01-01","Calificación como comercializadoras de derivados de petróleo o derivados del petroleo y sus mezclas con biocombustibles",120,30]
["MH-003-01-15","Extinción de la autorización para el ejercicio de actividades de elaboración, comercialización interna, importación y/o exportación de lubricantes",120,30]
["MH-014-01-01","Inscripción de actos determinados en la ley de  hidrocarburos y su reglamento",48,30]
["MH-049-01-01","Renuncia de Derechos Mineros (Permisos de Minería Artesanal, Concesiones Mineras, Libres Aprovechamientos de Materiales de Construcción para Obra Pública, Operación de Plantas de Beneficio, Licencias de Comercialización)",600,30]
["MH-003-01-12","Autorización para el ejercicio de actividades de elaboración, comercialización interna, importación y/o exportación de lubricantes",120,30]
["MH-024-01-02","Identificación de contaminantes radiactivos y su actividad",120,30]
["MH-020-01-03","Inspección documental de seguridad radiológica para fuentes radiactivas categoría 5 (bajo riesgo radiológico)",240,30]
["MH-003-01-07","Renovación de autorización de operación de comercializadoras de derivados del petróleo, o derivados del petróleo y sus mezclas con biocombustibles, excepto el gas licuado de petróleo (GLP)",120,30]
["MH-039-02-01","Renovación de Licencias de Comercialización y/o Exportación de Sustancias Mineras Metálicas o a la Exportación de Sustancias Minerales no Metálicas Para Personas Naturales",60,30]
["MH-008-01-03","Aprobación de taponamiento y abandono definitivo de pozos",120,30]
["MH-019-02-04","Emisión de licencia institucional para fuentes selladas",80,30]
["MH-003-01-14","Reforma de la autorización para el ejercicio de actividades de elaboración, comercialización interna, importación y/o exportación de lubricantes",120,30]
["MERNNR-029-03-02","Emisión de autorización de re-exportación de equipos generadores de radiación ionizante",80,30]
["MH-039-01-01","Otorgamiento de Licencias de Comercialización y/o Exportación de Sustancias Mineras Metálicas o a la Exportación de Sustancias Minerales no Metálicas Para Personas Naturales",600,30]
["MH-024-02-03","Prueba de fuga en fuentes selladas más de 5 muestras",240,30]
["MH-026-01-01","Irradiación de muestras",64,30]
["MH-012-01-01","Aprobación de proyectos de Recuperación Secundaria",360,30]
["MH-009-01-01","Aprobación para uso del crudo en operaciones de explotación para empresas privadas",240,30]
["MERNNR-029-03-01","Emisión de autorización de re-exportación de fuentes radiactivas",80,30]
["MH-019-02-05","Emisión de licencia institucional para instalación y mantenimiento de equipos generadores y emisores de radiación ionizante",80,30]
["MERNNR-067-01-01","Aprobación de la prolongación de Pruebas de Producción",240,30]
["MH-016-01-01","Entrega de información hidrocarburífera ",120,30]
["MH-019-03-01","Emisión de licencia de importación para equipos emisores de radiación ionizante y material radiactivo",80,30]
["MH-003-01-02","Autorización de operación de comercializadoras de derivados del petróleo o derivados del petróleo y sus mezclas con biocombustibles, excepto el gas licuado de petróleo (GLP) por cada segmento de mercado",120,30]
["MH-019-02-02","Emisión de licencia institucional para equipos generadores de radiación ionizante para uso no médico",80,30]
["MH-039-02-02","Renovación de Licencias de Comercialización y/o Exportación de Sustancias Mineras Metálicas o a la Exportación de Sustancias Minerales no Metálicas Para Personas Jurídicas",60,30]
["MH-039-01-02","Otorgamiento de Licencias de Comercialización y/o Exportación de Sustancias Mineras Metálicas o a la Exportación de Sustancias Minerales no Metálicas Para Personas Jurídicas",600,30]
["MH-015-01-01","Aprobación del programa de actividades y presupuesto de inversiones, costos y gastos anuales para la empresa pública Petroamazonas EP",720,30]
["MERNNR-059-01-01","Aprobación de programas de side track",120,30]
["MH-019-01-03","Ampliación de licencia personal en materia de seguridad radiológica",80,30]
["MH-024-01-05","Determinación alfa y beta grueso en aguas más de 5 muestras",160,30]
["MH-007-01-01","Notificación de construcción de nuevas facilidades, ampliación, mejoramiento y o modificación de producción de facilidades existentes para el tratamiento de hidrocarburos que consten en el presupuesto anual aprobado de inversiones, costos y gastos",240,30]
["MERNNR-069-01-01","Aprobación de la legalización de cambios de zona productora",240,30]
["MH-019-03-02","Emisión de licencia de importación para equipos generadores de radiación ionizante",80,30]
["MH-024-02-01","Prueba de fuga en fuentes selladas hasta 5 muestras",120,30]
["MH-006-01-05","Notificación  de  programas alternos de pozos productores hidrocarburiferos, inyectores o re inyectores",240,30]
["MH-011-01-03","Actualización de las tasas de producción de petróleo por pozo y yacimiento",240,30]
["MERNNR-029-05-01","Emisión de autorización de importación de fuentes selladas",80,30]
["MH-006-01-01","Notificación de completación y pruebas iniciales",240,30]
["MH-046-01-01","Cesión y Transferencia de Derechos Mineros",600,30]
["MERNNR-058-01-01","Aprobación de perforación de pozos",120,30]
["MH-041-01-01","Extensión de la vigencia y/o de los volúmenes de explotación de la Autorización Temporal de Libre Aprovechamiento de Materiales de Construcción Para Obras Públicas Para Entidades Públicas",600,30]
["MH-029-01-01","Autorización de oficial de seguridad radiológica OSR",80,30]
["MH-020-01-02","Inspección documental de seguridad radiológica para equipos generadores de radiación ionizante",240,30]
["MH-011-01-02","Aprobación de las tasas de producción de gas natural por pozo y yacimiento",240,30]
["MERNNR-029-05-02","Emisión de autorización de importación de fuentes abiertas",16,0]
["MERNNR-029-04-01","Emisión de autorización de movilización de fuentes radiactivas",80,30]
["MH-006-01-03","Aprobación de reacondicionamientos de pozos productores hidrocarburiferos, inyectores o re inyectores",240,30]
["MH-019-01-04","Actualización de licencia personal en materia de seguridad radiológica",80,30]
["MH-040-01-01","Autorización Temporal de Libre Aprovechamiento de Materiales de Construcción Para Obras Públicas Para Entidades Gubernamentales",600,30]
["MH-006-01-04","Aprobación de  programas alternos de pozos productores hidrocarburiferos, inyectores o re inyectores",240,30]
["MH-011-01-01","Aprobación de las tasas de producción de petróleo por pozo y yacimiento",240,30]
["MH-019-02-01","Emisión licencia institucional para equipos generadores de radiación ionizante para uso médico",80,30]
["MH-021-01-02","Calibración de detectores en planta central",160,30]
["MH-005-01-01","Atención de solicitudes de acceso a la información pública",120,30]
["MH-019-01-01","Licencia personal en materia de seguridad radiológica por primera vez",80,30]
["MH-020-01-01","Inspección de seguridad radiológica",240,30]
["MERNNR-029-02-01","Emisión de autorización de importación de equipos generadores de radiación ionizante",80,30]
["MH-006-01-02","Notificación  de reacondicionamientos de pozos productores hidrocarburifero, inyectores o re inyectores",240,30]
["MH-019-01-02","Renovación de licencia personal en materia de seguridad radiológica",80,30]
["MH-022-01-01","Dosimetría personal externa de cuerpo entero",240,30]
["MH-055-01-01","Capacitación en materia de seguridad radiológica",120,30]

{"sheet":"CANAL ATENCIÓN","index":7,"n_rows":189,"n_cols":12,"rows_kept":189,"cut":false,"hidden":false,"merged":[[0,0,0,3],[1,0,1,3]]}
["PRIORIZACIÓN DE TRÁMITES ADMINISTRATIVOS"]
["CANAL DE ATENCIÓN"]
[null,null,null,null,null,null,null,null,"Totalmente en Línea",null,null,0]
["IDENTIFICADOR","TRÁMITE","CANAL ATENCIÓN","PUNTUACIÓN",null,null,null,null,"No se completa totalmente en línea.",null,null,10]
["MH-042-02-01","Acumulación de Áreas de Régimen de Minería Artesanal Para la Modificación a Régimen de Pequeña Minería","No se completa totalmente en línea.",{"$f":"IF(ISBLANK(C5),\"\",IF(C5=\"Totalmente en línea\",0,IF(C5=\"Inicia en línea\",6,10)))","v":10}]
["MH-043-01-01","Acumulación de Áreas Mineras","No se completa totalmente en línea.",{"$f":"IF(ISBLANK(C6),\"\",IF(C6=\"Totalmente en línea\",0,IF(C6=\"Inicia en línea\",6,10)))","v":10}]
["MH-054-01-01","Ampliación de Evaluación Económica del Yacimiento de Concesiones de Mediana / Gran Minería","No se completa totalmente en línea.",10]
["MH-025-02-02","Análisis de PCBs en aceite dieléctrico, empresa particular","No se completa totalmente en línea.",10]
["MH-025-02-03","Análisis de PCBs en aceite dieléctrico, empresas eléctricas","No se completa totalmente en línea.",10]
["MH-025-03-02","Análisis de residuos de glifosato en suelo o agua","No se completa totalmente en línea.",10]
["MH-025-01-01","Análisis de residuos de hidrocarburos aromáticos policíclicos HAPs en agua o suelo","No se completa totalmente en línea.",10]
["MH-025-03-01","Análisis de residuos de OCls y OPs por cromatografía de gases, en biotas, suelo o agua","No se completa totalmente en línea.",10]
["MH-025-02-01","Análisis de residuos de PCBs en agua o suelo","No se completa totalmente en línea.",10]
["MH-024-01-03","Análisis de tritio en muestras acuosas","No se completa totalmente en línea.",10]
["MH-007-01-02","Aprobación de construcción de nuevas facilidades, ampliación, mejoramiento y o modificación de facilidades existentes. (actividades que no se encuentran dentro del presupuesto anual aprobado)","No se completa totalmente en línea.",10]
["MERNNR-068-01-01","Aprobación de la caracterización de yacimientos por campo","No se completa totalmente en línea.",10]
["MERNNR-067-01-02","Aprobación de la prolongación de Pruebas de Inyección de fluidos","No se completa totalmente en línea.",10]
["MERNNR-067-01-03","Aprobación de la prolongación de Pruebas de Reinyección de fluidos","No se completa totalmente en línea.",10]
["MERNNR-015-02-02","Aprobación de la reforma al programas de actividades y presupuestos de inversiones, costos y gastos anuales para empresas privadas","No se completa totalmente en línea.",10]
["MERNNR-058-01-02","Aprobación de perforación de pozos de re-entry","No se completa totalmente en línea.",10]
["MERNNR-015-02-01","Aprobación de programas de actividades y presupuestos de inversiones, costos, gastos anuales para empresas privadas","No se completa totalmente en línea.",10]
["MERNNR-059-01-03","Aprobación de programas de cambio de diseño de perforación","No se completa totalmente en línea.",10]
["MERNNR-059-01-02","Aprobación de programas de profundizaciones","No se completa totalmente en línea.",10]
["MH-015-01-03","Aprobación del plan quinquenal para empresa pública Petroamazonas EP","No se completa totalmente en línea.",10]
["MERNNR-015-02-03","Aprobación del plan quinquenal para empresas privadas","No se completa totalmente en línea.",10]
["MERNNR-009-02-01","Aprobación para uso de gas natural en operaciones de explotación, transporte y/o quema","No se completa totalmente en línea.",10]
["MH-010-01-01","Autorización para construcción de ductos principales","No se completa totalmente en línea.",10]
["MH-003-01-16","Autorización para el ejercicio de actividades de elaboración, importación y comercialización de aceite agrícola (SPRAY OIL)","No se completa totalmente en línea.",10]
["MH-047-01-01","Autorización para la Celebración del Contrato de Cesión en Garantía de Derechos Mineros","No se completa totalmente en línea.",10]
["MERNNR-056-01-01","Autorización para la construcción de ductos secundarios de hidrocarburos","No se completa totalmente en línea.",10]
["MH-021-01-05","Calibración de detectores fuera de planta central","No se completa totalmente en línea.",10]
["MH-052-01-01","Cambio de Fase de Evaluación Económica del Yacimiento a Explotación, de Concesiones Mineras de Mediana y Gran Minería","No se completa totalmente en línea.",10]
["MH-051-01-01","Cambio de Fase de Exploración Inicial a Exploración Avanzada, de Concesiones Mineras de Mediana / Gran Minería ","No se completa totalmente en línea.",10]
["MH-024-02-02","Determinación de contaminación superficial en el manejo de fuentes abiertas","No se completa totalmente en línea.",10]
["MH-024-01-06","Determinación de las características de radiactividad en desechos","No se completa totalmente en línea.",10]
["MH-002-01-02","Disolución voluntaria de organizaciones sociales relacionadas con el ámbito de energía y recursos naturales no renovables","No se completa totalmente en línea.",10]
["MH-044-01-01","División Material de una Concesión Minera","No se completa totalmente en línea.",10]
["MH-022-01-02","Dosimetría personal externa de extremidades en anillo o en brazalete","No se completa totalmente en línea.",10]
["MH-022-01-03","Dosimetría personal interna en vivo","No se completa totalmente en línea.",10]
["MH-048-01-01","Ejecución de la Cesión en Garantía de Derechos Mineros","No se completa totalmente en línea.",10]
["MERNNR-029-06-01","Emisión de autorización de construcción de instalaciones categoría 1 y 2","No se completa totalmente en línea.",10]
["MH-023-01-01","Evaluación dosimétrica de radiación","No se completa totalmente en línea.",10]
["MH-003-01-19","Extinción de la autorización para el ejercicio de actividades de elaboración, importación y comercialización de aceite agrícola (SPRAY OIL)","No se completa totalmente en línea.",10]
["MH-027-01-01","Gestión de desechos radiactivos o fuentes radioactivas en desuso","No se completa totalmente en línea.",10]
["MH-022-01-04","Gestión de pérdida o daño del dosímetro personal","No se completa totalmente en línea.",10]
["MH-022-01-05","Gestión de pérdida o daño del porta dosímetro","No se completa totalmente en línea.",10]
["MH-002-01-03","Inclusión y exclusión de miembros de organizaciones sociales relacionadas con el ámbito de energía y recursos naturales no renovables","No se completa totalmente en línea.",10]
["MH-024-01-07","Medición de la concentración de radionúclidos en diferentes casos y caracterización de espectrómetros y fuentes radiactivas","No se completa totalmente en línea.",10]
["MH-038-01-01","Modificación de la Capacidad de Procesamiento Autorizada de Plantas de Beneficio, Fundición, Refinación y Construcción de Relaveras","No se completa totalmente en línea.",10]
["MERNNR-024-03-02","Monitoreo de fuentes radiactivas por punto monitoreado","No se completa totalmente en línea.",10]
["MERNNR-024-03-01","Monitoreo de niveles de radiactividad natural o artificial","No se completa totalmente en línea.",10]
["MH-013-01-01","Notificación del inicio de programas de actividad sísmica","No se completa totalmente en línea.",10]
["MERNNR-070-01-01","Oficialización de reservas por contrato petrolero","No se completa totalmente en línea.",10]
["MH-037-01-02","Otorgamiento de Autorización para la Instalación y Operación de Plantas de Beneficio, Fundición, Refinación y Construcción de Relaveras Para Personas Jurídicas","No se completa totalmente en línea.",10]
["MH-037-01-03","Otorgamiento de Autorización para la Instalación y Operación de Plantas de Beneficio, Fundición, Refinación y Construcción de Relaveras Para Personas Jurídicas Extranjeras","No se completa totalmente en línea.",10]
["MH-037-01-01","Otorgamiento de Autorización para la Instalación y Operación de Plantas de Beneficio, Fundición, Refinación y Construcción de Relaveras Para Personas Naturales","No se completa totalmente en línea.",10]
["MH-039-01-03","Otorgamiento de Licencias de Comercialización y/o Exportación de Sustancias Mineras Metálicas o a la Exportación de Sustancias Minerales no Metálicas Para Personas Jurídicas Extranjeras","No se completa totalmente en línea.",10]
["MH-050-01-01","Reducción de Permisos de Minería Artesanal, Concesiones Mineras, Libres Aprovechamientos de Materiales de Construcción Para Obras Públicas ","No se completa totalmente en línea.",10]
["MH-003-01-10","Reforma de la autorización para el ejercicio de actividades de comercialización de gas licuado de petróleo (GLP)","No se completa totalmente en línea.",10]
["MH-003-01-18","Reforma de la autorización para el ejercicio de actividades de elaboración, importación y comercialización de aceite agrícola (SPRAY OIL)","No se completa totalmente en línea.",10]
["MH-003-01-13","Renovación de autorización para el ejercicio de actividades de elaboración, comercialización interna, importación y/o exportación de lubricantes","No se completa totalmente en línea.",10]
["MH-003-01-17","Renovación de la autorización para el ejercicio de actividades de elaboración, importación y comercialización de aceite agrícola (SPRAY OIL)","No se completa totalmente en línea.",10]
["MH-039-02-03","Renovación de Licencias de Comercialización y/o Exportación de Sustancias Mineras Metálicas o a la Exportación de Sustancias Minerales no Metálicas Para Personas Jurídicas Extranjeras","No se completa totalmente en línea.",10]
["MH-003-01-09","Renovación de operación para el ejercicio de actividades de comercialización de gas licuado de petróleo (GLP)","No se completa totalmente en línea.",10]
["MH-015-01-02","Aprobación de la reforma al programa de actividades y presupuesto de inversiones, costos y gastos anuales para empresa pública Petroamazonas EP","No se completa totalmente en línea.",10]
["MH-021-01-03","Calibración de detectores por cada escala adicional en planta central","No se completa totalmente en línea.",10]
["MH-021-01-06","Calibración de detectores por cada escala adicional fuera de planta central","No se completa totalmente en línea.",10]
["MH-008-01-04","Aprobación de taponamiento y abandono temporal de pozos","No se completa totalmente en línea.",10]
["MH-003-01-05","Autorización de operación para el ejercicio de actividades de comercialización de gas licuado de petróleo (GLP)","No se completa totalmente en línea.",10]
["MH-021-01-01","Calibración de cámaras de ionización y activímetros","No se completa totalmente en línea.",{"$f":"IF(ISBLANK(C70),\"\",IF(C70=\"Totalmente en línea\",0,IF(C70=\"Inicia en línea\",6,10)))","v":10}]
["MH-021-01-04","Calibración de detectores de radiación tipo alarma","No se completa totalmente en línea.",10]
["MH-003-01-04","Calificación para el ejercicio de actividades de comercialización de gas licuado de petróleo (GLP) en cilindros","No se completa totalmente en línea.",10]
["MH-002-01-01","Constitución de organizaciones sociales relacionadas con el ámbito de energía y recursos naturales no renovables","No se completa totalmente en línea.",10]
["MH-026-01-02","Irradiación de dosímetros","No se completa totalmente en línea.",10]
["MH-002-01-04","Reforma de Estatutos de Organizaciones Sociales relacionadas con el ámbito de energía y recursos naturales no renovables","No se completa totalmente en línea.",10]
["MH-024-01-01","Análisis de espectrometría gamma o muestra","No se completa totalmente en línea.",10]
["MH-042-01-01","Modificación de Régimen de Minería Artesanal a Régimen de Pequeña Minería Para Personas Naturales","No se completa totalmente en línea.",10]
["MH-002-01-05","Registro de Directiva de Organizaciones Sociales relacionadas con el ámbito de energía y recursos naturales no renovables","No se completa totalmente en línea.",10]
["MH-011-01-04","Actualización de las tasas de producción de gas natural por pozo y yacimiento","No se completa totalmente en línea.",10]
["MERNNR-059-01-04","Aprobación de programas alternos de perforación","No se completa totalmente en línea.",10]
["MH-012-01-02","Aprobación de proyectos  para recuperación mejorada por yacimiento y campo","No se completa totalmente en línea.",10]
["MH-003-01-08","Calificación para el ejercicio de actividades de comercialización de gas licuado de petróleo (GLP) al granel: Instalaciones centralizadas o GLP vehicular","No se completa totalmente en línea.",10]
["MH-003-01-11","Extinción de la autorización para el ejercicio de actividades de comercialización de gas licuado de petróleo (GLP)","No se completa totalmente en línea.",10]
["MH-003-01-03","Reforma de la autorización de operación de comercializadoras de derivados del petróleo, o derivados del petróleo y sus mezclas con biocombustibles, excepto el gas licuado de petróleo (GLP)","No se completa totalmente en línea.",10]
["MERNNR-057-01-01","Aprobación de Reclasificación de Pozos","No se completa totalmente en línea.",10]
["MH-024-01-04","Determinación alfa y beta grueso en aguas hasta 5 muestras","No se completa totalmente en línea.",10]
["MH-019-02-03","Emisión de licencia institucional para fuentes abiertas","No se completa totalmente en línea.",10]
["MH-003-01-06","Extinción de la autorización de operación de comercializadoras de derivados del petróleo, o derivados del petróleo y sus mezclas con biocombustibles, excepto el gas licuado de petróleo (GLP)","No se completa totalmente en línea.",10]
["MH-037-02-01","Renovación de Autorización Para la Operación de Plantas de Beneficio, Fundición, Refinación y Relaveras","No se completa totalmente en línea.",10]
["MH-045-01-01","Calificación bajo el régimen especial de pequeña minería ","No se completa totalmente en línea.",10]
["MH-003-01-01","Calificación como comercializadoras de derivados de petróleo o derivados del petroleo y sus mezclas con biocombustibles","No se completa totalmente en línea.",10]
["MH-003-01-15","Extinción de la autorización para el ejercicio de actividades de elaboración, comercialización interna, importación y/o exportación de lubricantes","No se completa totalmente en línea.",10]
["MH-014-01-01","Inscripción de actos determinados en la ley de  hidrocarburos y su reglamento","No se completa totalmente en línea.",10]
["MH-049-01-01","Renuncia de Derechos Mineros (Permisos de Minería Artesanal, Concesiones Mineras, Libres Aprovechamientos de Materiales de Construcción para Obra Pública, Operación de Plantas de Beneficio, Licencias de Comercialización)","No se completa totalmente en línea.",10]
["MH-003-01-12","Autorización para el ejercicio de actividades de elaboración, comercialización interna, importación y/o exportación de lubricantes","No se completa totalmente en línea.",10]
["MH-024-01-02","Identificación de contaminantes radiactivos y su actividad","No se completa totalmente en línea.",10]
["MH-020-01-03","Inspección documental de seguridad radiológica para fuentes radiactivas categoría 5 (bajo riesgo radiológico)","No se completa totalmente en línea.",10]
["MH-003-01-07","Renovación de autorización de operación de comercializadoras de derivados del petróleo, o derivados del petróleo y sus mezclas con biocombustibles, excepto el gas licuado de petróleo (GLP)","No se completa totalmente en línea.",10]
["MH-039-02-01","Renovación de Licencias de Comercialización y/o Exportación de Sustancias Mineras Metálicas o a la Exportación de Sustancias Minerales no Metálicas Para Personas Naturales","No se completa totalmente en línea.",10]
["MH-008-01-03","Aprobación de taponamiento y abandono definitivo de pozos","No se completa totalmente en línea.",10]
["MH-019-02-04","Emisión de licencia institucional para fuentes selladas","No se completa totalmente en línea.",10]
["MH-003-01-14","Reforma de la autorización para el ejercicio de actividades de elaboración, comercialización interna, importación y/o exportación de lubricantes","No se completa totalmente en línea.",10]
["MERNNR-029-03-02","Emisión de autorización de re-exportación de equipos generadores de radiación ionizante","No se completa totalmente en línea.",10]
["MH-039-01-01","Otorgamiento de Licencias de Comercialización y/o Exportación de Sustancias Mineras Metálicas o a la Exportación de Sustancias Minerales no Metálicas Para Personas Naturales","No se completa totalmente en línea.",10]
["MH-024-02-03","Prueba de fuga en fuentes selladas más de 5 muestras","No se completa totalmente en línea.",10]
["MH-026-01-01","Irradiación de muestras","No se completa totalmente en línea.",10]
["MH-012-01-01","Aprobación de proyectos de Recuperación Secundaria","No se completa totalmente en línea.",10]
["MH-009-01-01","Aprobación para uso del crudo en operaciones de explotación para empresas privadas","No se completa totalmente en línea.",10]
["MERNNR-029-03-01","Emisión de autorización de re-exportación de fuentes radiactivas","No se completa totalmente en línea.",10]
["MH-019-02-05","Emisión de licencia institucional para instalación y mantenimiento de equipos generadores y emisores de radiación ionizante","No se completa totalmente en línea.",10]
["MERNNR-067-01-01","Aprobación de la prolongación de Pruebas de Producción","No se completa totalmente en línea.",10]
["MH-016-01-01","Entrega de información hidrocarburífera ","No se completa totalmente en línea.",10]
["MH-019-03-01","Emisión de licencia de importación para equipos emisores de radiación ionizante y material radiactivo","No se completa totalmente en línea.",10]
["MH-003-01-02","Autorización de operación de comercializadoras de derivados del petróleo o derivados del petróleo y sus mezclas con biocombustibles, excepto el gas licuado de petróleo (GLP) por cada segmento de mercado","No se completa totalmente en línea.",10]
["MH-019-02-02","Emisión de licencia institucional para equipos generadores de radiación ionizante para uso no médico","No se completa totalmente en línea.",10]
["MH-039-02-02","Renovación de Licencias de Comercialización y/o Exportación de Sustancias Mineras Metálicas o a la Exportación de Sustancias Minerales no Metálicas Para Personas Jurídicas","No se completa totalmente en línea.",10]
["MH-039-01-02","Otorgamiento de Licencias de Comercialización y/o Exportación de Sustancias Mineras Metálicas o a la Exportación de Sustancias Minerales no Metálicas Para Personas Jurídicas","No se completa totalmente en línea.",10]
["MH-015-01-01","Aprobación del programa de actividades y presupuesto de inversiones, costos y gastos anuales para la empresa pública Petroamazonas EP","No se completa totalmente en línea.",10]
["MERNNR-059-01-01","Aprobación de programas de side track","No se completa totalmente en línea.",10]
["MH-019-01-03","Ampliación de licencia personal en materia de seguridad radiológica","No se completa totalmente en línea.",10]
["MH-024-01-05","Determinación alfa y beta grueso en aguas más de 5 muestras","No se completa totalmente en línea.",10]
["MH-007-01-01","Notificación de construcción de nuevas facilidades, ampliación, mejoramiento y o modificación de producción de facilidades existentes para el tratamiento de hidrocarburos que consten en el presupuesto anual aprobado de inversiones, costos y gastos","No se completa totalmente en línea.",10]
["MERNNR-069-01-01","Aprobación de la legalización de cambios de zona productora","No se completa totalmente en línea.",10]
["MH-019-03-02","Emisión de licencia de importación para equipos generadores de radiación ionizante","No se completa totalmente en línea.",10]
["MH-024-02-01","Prueba de fuga en fuentes selladas hasta 5 muestras","No se completa totalmente en línea.",10]
["MH-006-01-05","Notificación  de  programas alternos de pozos productores hidrocarburiferos, inyectores o re inyectores","No se completa totalmente en línea.",10]
["MH-011-01-03","Actualización de las tasas de producción de petróleo por pozo y yacimiento","No se completa totalmente en línea.",10]
["MERNNR-029-05-01","Emisión de autorización de importación de fuentes selladas","No se completa totalmente en línea.",10]
["MH-006-01-01","Notificación de completación y pruebas iniciales","No se completa totalmente en línea.",10]
["MH-046-01-01","Cesión y Transferencia de Derechos Mineros","No se completa totalmente en línea.",10]
["MERNNR-058-01-01","Aprobación de perforación de pozos","No se completa totalmente en línea.",10]
["MH-041-01-01","Extensión de la vigencia y/o de los volúmenes de explotación de la Autorización Temporal de Libre Aprovechamiento de Materiales de Construcción Para Obras Públicas Para Entidades Públicas","No se completa totalmente en línea.",10]
["MH-029-01-01","Autorización de oficial de seguridad radiológica OSR","No se completa totalmente en línea.",10]
["MH-020-01-02","Inspección documental de seguridad radiológica para equipos generadores de radiación ionizante","No se completa totalmente en línea.",{"$f":"IF(ISBLANK(C134),\"\",IF(C134=\"Totalmente en línea\",0,IF(C134=\"Inicia en línea\",6,10)))","v":10}]
["MH-011-01-02","Aprobación de las tasas de producción de gas natural por pozo y yacimiento","No se completa totalmente en línea.",10]
["MERNNR-029-05-02","Emisión de autorización de importación de fuentes abiertas","No se completa totalmente en línea.",10]
["MERNNR-029-04-01","Emisión de autorización de movilización de fuentes radiactivas","No se completa totalmente en línea.",10]
["MH-006-01-03","Aprobación de reacondicionamientos de pozos productores hidrocarburiferos, inyectores o re inyectores","No se completa totalmente en línea.",10]
["MH-019-01-04","Actualización de licencia personal en materia de seguridad radiológica","No se completa totalmente en línea.",10]
["MH-040-01-01","Autorización Temporal de Libre Aprovechamiento de Materiales de Construcción Para Obras Públicas Para Entidades Gubernamentales","No se completa totalmente en línea.",10]
["MH-006-01-04","Aprobación de  programas alternos de pozos productores hidrocarburiferos, inyectores o re inyectores","No se completa totalmente en línea.",10]
["MH-011-01-01","Aprobación de las tasas de producción de petróleo por pozo y yacimiento","No se completa totalmente en línea.",10]
["MH-019-02-01","Emisión licencia institucional para equipos generadores de radiación ionizante para uso médico","No se completa totalmente en línea.",10]
["MH-021-01-02","Calibración de detectores en planta central","No se completa totalmente en línea.",10]
["MH-005-01-01","Atención de solicitudes de acceso a la información pública","No se completa totalmente en línea.",10]
["MH-019-01-01","Licencia personal en materia de seguridad radiológica por primera vez","No se completa totalmente en línea.",10]
["MH-020-01-01","Inspección de seguridad radiológica","No se completa totalmente en línea.",10]
["MERNNR-029-02-01","Emisión de autorización de importación de equipos generadores de radiación ionizante","No se completa totalmente en línea.",10]
["MH-006-01-02","Notificación  de reacondicionamientos de pozos productores hidrocarburifero, inyectores o re inyectores","No se completa totalmente en línea.",10]
["MH-019-01-02","Renovación de licencia personal en materia de seguridad radiológica","No se completa totalmente en línea.",10]
["MH-022-01-01","Dosimetría personal externa de cuerpo entero","No se completa totalmente en línea.",10]
["MH-055-01-01","Capacitación en materia de seguridad radiológica","No se completa totalmente en línea.",10]
[]
[]
[]
[]
[]
[]
[]
[]
[]
[]
[]
[]
[]
[]
[]
[]
[]
[]
[]
[]
[]
[]
[]
[]
[]
[]
[]
[]
[]
[]
[]
[]
[]
[null,null,null,{"$f":"IF(ISBLANK(C186),\"\",IF(C186=\"Totalmente en línea\",0,IF(C186=\"Inicia en línea\",6,10)))","v":""}]
[null,null,null,""]
[null,null,null,""]
[null,null,null,""]

{"sheet":"RESUMEN","index":8,"n_rows":164,"n_cols":25,"rows_kept":164,"cut":false,"hidden":false,"merged":[[1,0,2,0],[1,1,2,1],[1,2,2,2],[1,3,2,3],[1,4,2,4],[1,9,1,10],[1,11,1,12],[1,13,2,13],[0,2,0,6],[0,7,0,12],[1,5,2,5],[1,6,2,6],[1,7,1,8]]}
[null,null,"BÁSICOS",null,null,null,null,"ADICIONALES"]
["ID trámite","Nombre del trámite","Demanda","Quejas","Costo para administración","Tiempo de respuesta","Canal de atención","Necesidades ciudadanas",null,"Susceptibilidad a corrupción",null,"Volumen de devoluciones",null,"PUNTAJE TOTAL"]
[null,null,null,null,null,null,null,"Criterio","Puntuación","Criterio","Puntuación","Criterio","Puntuación",null,null,null,null,null,null,null,"demanda",0,3,6,10]
["MH-042-02-01","Acumulación de Áreas de Régimen de Minería Artesanal Para la Modificación a Régimen de Pequeña Minería",0,0,{"$f":"VLOOKUP(A4,'RESUMEN DE COSTOS AP'!$A$5:$D$152,4,FALSE)","v":5},30,10,"NO",{"$f":"IF(H4=\"SI\",5,0)","v":0},"NO",{"$f":"IF(J4=\"SI\",10,0)","v":0},"NO",{"$f":"IF(L4=\"SI\",5,0)","v":0},{"$f":"SUM(C4:G4,I4,K4,M4)","v":45},null,null,null,null,null,null,"quejas",0,4,10]
["MH-043-01-01","Acumulación de Áreas Mineras",0,0,{"$f":"VLOOKUP(A5,'RESUMEN DE COSTOS AP'!$A$5:$D$152,4,FALSE)","v":5},30,10,"NO",{"$f":"IF(H5=\"SI\",5,0)","v":0},"NO",{"$f":"IF(J5=\"SI\",10,0)","v":0},"NO",{"$f":"IF(L5=\"SI\",5,0)","v":0},{"$f":"SUM(C5:G5,I5,K5,M5)","v":45}]
["MH-054-01-01","Ampliación de Evaluación Económica del Yacimiento de Concesiones de Mediana / Gran Minería",0,0,{"$f":"VLOOKUP(A6,'RESUMEN DE COSTOS AP'!$A$5:$D$152,4,FALSE)","v":20},30,10,"NO",0,"NO",0,"NO",0,60]
["MH-025-02-02","Análisis de PCBs en aceite dieléctrico, empresa particular",0,0,{"$f":"VLOOKUP(A7,'RESUMEN DE COSTOS AP'!$A$5:$D$152,4,FALSE)","v":10},0,10,"NO",0,"NO",0,"NO",0,20]
["MH-025-02-03","Análisis de PCBs en aceite dieléctrico, empresas eléctricas",0,0,{"$f":"VLOOKUP(A8,'RESUMEN DE COSTOS AP'!$A$5:$D$152,4,FALSE)","v":20},30,10,"NO",0,"NO",0,"NO",0,60]
["MH-025-03-02","Análisis de residuos de glifosato en suelo o agua",0,0,{"$f":"VLOOKUP(A9,'RESUMEN DE COSTOS AP'!$A$5:$D$152,4,FALSE)","v":5},0,10,"NO",0,"NO",0,"NO",0,15]
["MH-025-01-01","Análisis de residuos de hidrocarburos aromáticos policíclicos HAPs en agua o suelo",0,0,{"$f":"VLOOKUP(A10,'RESUMEN DE COSTOS AP'!$A$5:$D$152,4,FALSE)","v":20},0,10,"NO",0,"NO",0,"NO",0,30]
["MH-025-03-01","Análisis de residuos de OCls y OPs por cromatografía de gases, en biotas, suelo o agua",0,0,{"$f":"VLOOKUP(A11,'RESUMEN DE COSTOS AP'!$A$5:$D$152,4,FALSE)","v":10},0,10,"NO",0,"NO",0,"NO",0,20]
["MH-025-02-01","Análisis de residuos de PCBs en agua o suelo",0,0,{"$f":"VLOOKUP(A12,'RESUMEN DE COSTOS AP'!$A$5:$D$152,4,FALSE)","v":5},0,10,"NO",0,"NO",0,"NO",0,15]
["MH-024-01-03","Análisis de tritio en muestras acuosas",0,0,{"$f":"VLOOKUP(A13,'RESUMEN DE COSTOS AP'!$A$5:$D$152,4,FALSE)","v":5},30,10,"NO",0,"NO",0,"NO",0,45]
["MH-007-01-02","Aprobación de construcción de nuevas facilidades, ampliación, mejoramiento y o modificación de facilidades existentes. (actividades que no se encuentran dentro del presupuesto anual aprobado)",0,0,{"$f":"VLOOKUP(A14,'RESUMEN DE COSTOS AP'!$A$5:$D$152,4,FALSE)","v":5},30,10,"NO",0,"NO",0,"NO",0,45]
["MERNNR-068-01-01","Aprobación de la caracterización de yacimientos por campo",0,0,{"$f":"VLOOKUP(A15,'RESUMEN DE COSTOS AP'!$A$5:$D$152,4,FALSE)","v":5},30,10,"NO",0,"NO",0,"NO",0,45]
["MERNNR-067-01-02","Aprobación de la prolongación de Pruebas de Inyección de fluidos",0,0,{"$f":"VLOOKUP(A16,'RESUMEN DE COSTOS AP'!$A$5:$D$152,4,FALSE)","v":5},30,10,"NO",0,"NO",0,"NO",0,45]
["MERNNR-067-01-03","Aprobación de la prolongación de Pruebas de Reinyección de fluidos",0,0,{"$f":"VLOOKUP(A17,'RESUMEN DE COSTOS AP'!$A$5:$D$152,4,FALSE)","v":5},30,10,"NO",0,"NO",0,"NO",0,45]
["MERNNR-015-02-02","Aprobación de la reforma al programas de actividades y presupuestos de inversiones, costos y gastos anuales para empresas privadas",0,0,{"$f":"VLOOKUP(A18,'RESUMEN DE COSTOS AP'!$A$5:$D$152,4,FALSE)","v":10},30,10,"NO",0,"NO",0,"NO",0,50]
["MERNNR-058-01-02","Aprobación de perforación de pozos de re-entry",0,0,{"$f":"VLOOKUP(A19,'RESUMEN DE COSTOS AP'!$A$5:$D$152,4,FALSE)","v":20},30,10,"NO",0,"NO",0,"NO",0,60]
["MERNNR-015-02-01","Aprobación de programas de actividades y presupuestos de inversiones, costos, gastos anuales para empresas privadas",0,0,{"$f":"VLOOKUP(A20,'RESUMEN DE COSTOS AP'!$A$5:$D$152,4,FALSE)","v":10},30,10,"NO",0,"NO",0,"NO",0,50]
["MERNNR-059-01-03","Aprobación de programas de cambio de diseño de perforación",0,0,{"$f":"VLOOKUP(A21,'RESUMEN DE COSTOS AP'!$A$5:$D$152,4,FALSE)","v":5},30,10,"NO",0,"NO",0,"NO",0,45]
["MERNNR-059-01-02","Aprobación de programas de profundizaciones",0,0,{"$f":"VLOOKUP(A22,'RESUMEN DE COSTOS AP'!$A$5:$D$152,4,FALSE)","v":10},30,10,"NO",0,"NO",0,"NO",0,50]
["MH-015-01-03","Aprobación del plan quinquenal para empresa pública Petroamazonas EP",0,0,{"$f":"VLOOKUP(A23,'RESUMEN DE COSTOS AP'!$A$5:$D$152,4,FALSE)","v":10},30,10,"NO",0,"NO",0,"NO",0,50]
["MERNNR-015-02-03","Aprobación del plan quinquenal para empresas privadas",0,0,{"$f":"VLOOKUP(A24,'RESUMEN DE COSTOS AP'!$A$5:$D$152,4,FALSE)","v":10},30,10,"NO",0,"NO",0,"NO",0,50]
["MERNNR-009-02-01","Aprobación para uso de gas natural en operaciones de explotación, transporte y/o quema",0,0,{"$f":"VLOOKUP(A25,'RESUMEN DE COSTOS AP'!$A$5:$D$152,4,FALSE)","v":10},30,10,"NO",0,"NO",0,"NO",0,50]
["MH-010-01-01","Autorización para construcción de ductos principales",0,0,{"$f":"VLOOKUP(A26,'RESUMEN DE COSTOS AP'!$A$5:$D$152,4,FALSE)","v":10},30,10,"NO",0,"NO",0,"NO",0,50]
["MH-003-01-16","Autorización para el ejercicio de actividades de elaboración, importación y comercialización de aceite agrícola (SPRAY OIL)",0,0,{"$f":"VLOOKUP(A27,'RESUMEN DE COSTOS AP'!$A$5:$D$152,4,FALSE)","v":10},30,10,"NO",0,"NO",0,"NO",0,50]
["MH-047-01-01","Autorización para la Celebración del Contrato de Cesión en Garantía de Derechos Mineros",0,0,{"$f":"VLOOKUP(A28,'RESUMEN DE COSTOS AP'!$A$5:$D$152,4,FALSE)","v":5},30,10,"NO",0,"NO",0,"NO",0,45]
["MERNNR-056-01-01","Autorización para la construcción de ductos secundarios de hidrocarburos",0,0,{"$f":"VLOOKUP(A29,'RESUMEN DE COSTOS AP'!$A$5:$D$152,4,FALSE)","v":5},30,10,"NO",0,"NO",0,"NO",0,45]
["MH-021-01-05","Calibración de detectores fuera de planta central",0,0,{"$f":"VLOOKUP(A30,'RESUMEN DE COSTOS AP'!$A$5:$D$152,4,FALSE)","v":5},30,10,"NO",0,"NO",0,"NO",0,45]
["MH-052-01-01","Cambio de Fase de Evaluación Económica del Yacimiento a Explotación, de Concesiones Mineras de Mediana y Gran Minería",0,0,{"$f":"VLOOKUP(A31,'RESUMEN DE COSTOS AP'!$A$5:$D$152,4,FALSE)","v":5},30,10,"NO",0,"NO",0,"NO",0,45]
["MH-051-01-01","Cambio de Fase de Exploración Inicial a Exploración Avanzada, de Concesiones Mineras de Mediana / Gran Minería ",0,0,{"$f":"VLOOKUP(A32,'RESUMEN DE COSTOS AP'!$A$5:$D$152,4,FALSE)","v":5},30,10,"NO",0,"NO",0,"NO",0,45]
["MH-024-02-02","Determinación de contaminación superficial en el manejo de fuentes abiertas",0,0,{"$f":"VLOOKUP(A33,'RESUMEN DE COSTOS AP'!$A$5:$D$152,4,FALSE)","v":10},30,10,"NO",0,"NO",0,"NO",0,50]
["MH-024-01-06","Determinación de las características de radiactividad en desechos",0,0,{"$f":"VLOOKUP(A34,'RESUMEN DE COSTOS AP'!$A$5:$D$152,4,FALSE)","v":5},30,10,"NO",0,"NO",0,"NO",0,45]
["MH-002-01-02","Disolución voluntaria de organizaciones sociales relacionadas con el ámbito de energía y recursos naturales no renovables",0,0,{"$f":"VLOOKUP(A35,'RESUMEN DE COSTOS AP'!$A$5:$D$152,4,FALSE)","v":5},30,10,"NO",0,"NO",0,"NO",0,45]
["MH-044-01-01","División Material de una Concesión Minera",0,0,{"$f":"VLOOKUP(A36,'RESUMEN DE COSTOS AP'!$A$5:$D$152,4,FALSE)","v":5},30,10,"NO",0,"NO",0,"NO",0,45]
["MH-022-01-02","Dosimetría personal externa de extremidades en anillo o en brazalete",0,0,{"$f":"VLOOKUP(A37,'RESUMEN DE COSTOS AP'!$A$5:$D$152,4,FALSE)","v":10},30,10,"NO",0,"NO",0,"NO",0,50]
["MH-022-01-03","Dosimetría personal interna en vivo",0,0,{"$f":"VLOOKUP(A38,'RESUMEN DE COSTOS AP'!$A$5:$D$152,4,FALSE)","v":10},30,10,"NO",0,"NO",0,"NO",0,50]
["MH-048-01-01","Ejecución de la Cesión en Garantía de Derechos Mineros",0,0,{"$f":"VLOOKUP(A39,'RESUMEN DE COSTOS AP'!$A$5:$D$152,4,FALSE)","v":20},30,10,"NO",0,"NO",0,"NO",0,60]
["MERNNR-029-06-01","Emisión de autorización de construcción de instalaciones categoría 1 y 2",0,0,{"$f":"VLOOKUP(A40,'RESUMEN DE COSTOS AP'!$A$5:$D$152,4,FALSE)","v":20},30,10,"NO",0,"NO",0,"NO",0,60]
["MH-023-01-01","Evaluación dosimétrica de radiación",0,0,{"$f":"VLOOKUP(A41,'RESUMEN DE COSTOS AP'!$A$5:$D$152,4,FALSE)","v":5},30,10,"NO",0,"NO",0,"NO",0,45]
["MH-003-01-19","Extinción de la autorización para el ejercicio de actividades de elaboración, importación y comercialización de aceite agrícola (SPRAY OIL)",0,0,{"$f":"VLOOKUP(A42,'RESUMEN DE COSTOS AP'!$A$5:$D$152,4,FALSE)","v":5},30,10,"NO",0,"NO",0,"NO",0,45]
["MH-027-01-01","Gestión de desechos radiactivos o fuentes radioactivas en desuso",0,0,{"$f":"VLOOKUP(A43,'RESUMEN DE COSTOS AP'!$A$5:$D$152,4,FALSE)","v":10},30,10,"NO",0,"NO",0,"NO",0,50]
["MH-022-01-04","Gestión de pérdida o daño del dosímetro personal",0,0,{"$f":"VLOOKUP(A44,'RESUMEN DE COSTOS AP'!$A$5:$D$152,4,FALSE)","v":10},30,10,"NO",0,"NO",0,"NO",0,50]
["MH-022-01-05","Gestión de pérdida o daño del porta dosímetro",0,0,{"$f":"VLOOKUP(A45,'RESUMEN DE COSTOS AP'!$A$5:$D$152,4,FALSE)","v":10},30,10,"NO",0,"NO",0,"NO",0,50]
["MH-002-01-03","Inclusión y exclusión de miembros de organizaciones sociales relacionadas con el ámbito de energía y recursos naturales no renovables",0,0,{"$f":"VLOOKUP(A46,'RESUMEN DE COSTOS AP'!$A$5:$D$152,4,FALSE)","v":10},30,10,"NO",0,"NO",0,"NO",0,50]
["MH-024-01-07","Medición de la concentración de radionúclidos en diferentes casos y caracterización de espectrómetros y fuentes radiactivas",0,0,{"$f":"VLOOKUP(A47,'RESUMEN DE COSTOS AP'!$A$5:$D$152,4,FALSE)","v":10},30,10,"NO",0,"NO",0,"NO",0,50]
["MH-038-01-01","Modificación de la Capacidad de Procesamiento Autorizada de Plantas de Beneficio, Fundición, Refinación y Construcción de Relaveras",0,0,{"$f":"VLOOKUP(A48,'RESUMEN DE COSTOS AP'!$A$5:$D$152,4,FALSE)","v":5},30,10,"NO",0,"NO",0,"NO",0,45]
["MERNNR-024-03-02","Monitoreo de fuentes radiactivas por punto monitoreado",0,0,{"$f":"VLOOKUP(A49,'RESUMEN DE COSTOS AP'!$A$5:$D$152,4,FALSE)","v":20},30,10,"NO",0,"NO",0,"NO",0,60]
["MERNNR-024-03-01","Monitoreo de niveles de radiactividad natural o artificial",0,0,{"$f":"VLOOKUP(A50,'RESUMEN DE COSTOS AP'!$A$5:$D$152,4,FALSE)","v":5},30,10,"NO",0,"NO",0,"NO",0,45]
["MH-013-01-01","Notificación del inicio de programas de actividad sísmica",0,0,{"$f":"VLOOKUP(A51,'RESUMEN DE COSTOS AP'!$A$5:$D$152,4,FALSE)","v":5},30,10,"NO",0,"NO",0,"NO",0,45]
["MERNNR-070-01-01","Oficialización de reservas por contrato petrolero",0,0,{"$f":"VLOOKUP(A52,'RESUMEN DE COSTOS AP'!$A$5:$D$152,4,FALSE)","v":5},30,10,"NO",0,"NO",0,"NO",0,45]
["MH-037-01-02","Otorgamiento de Autorización para la Instalación y Operación de Plantas de Beneficio, Fundición, Refinación y Construcción de Relaveras Para Personas Jurídicas",0,0,{"$f":"VLOOKUP(A53,'RESUMEN DE COSTOS AP'!$A$5:$D$152,4,FALSE)","v":5},30,10,"NO",0,"NO",0,"NO",0,45]
["MH-037-01-03","Otorgamiento de Autorización para la Instalación y Operación de Plantas de Beneficio, Fundición, Refinación y Construcción de Relaveras Para Personas Jurídicas Extranjeras",0,0,{"$f":"VLOOKUP(A54,'RESUMEN DE COSTOS AP'!$A$5:$D$152,4,FALSE)","v":5},30,10,"NO",0,"NO",0,"NO",0,45]
["MH-037-01-01","Otorgamiento de Autorización para la Instalación y Operación de Plantas de Beneficio, Fundición, Refinación y Construcción de Relaveras Para Personas Naturales",0,0,{"$f":"VLOOKUP(A55,'RESUMEN DE COSTOS AP'!$A$5:$D$152,4,FALSE)","v":20},30,10,"NO",0,"NO",0,"NO",0,60]
["MH-039-01-03","Otorgamiento de Licencias de Comercialización y/o Exportación de Sustancias Mineras Metálicas o a la Exportación de Sustancias Minerales no Metálicas Para Personas Jurídicas Extranjeras",0,0,{"$f":"VLOOKUP(A56,'RESUMEN DE COSTOS AP'!$A$5:$D$152,4,FALSE)","v":5},30,10,"NO",0,"NO",0,"NO",0,45]
["MH-050-01-01","Reducción de Permisos de Minería Artesanal, Concesiones Mineras, Libres Aprovechamientos de Materiales de Construcción Para Obras Públicas ",0,0,{"$f":"VLOOKUP(A57,'RESUMEN DE COSTOS AP'!$A$5:$D$152,4,FALSE)","v":20},30,10,"NO",0,"NO",0,"NO",0,60]
["MH-003-01-10","Reforma de la autorización para el ejercicio de actividades de comercialización de gas licuado de petróleo (GLP)",0,0,{"$f":"VLOOKUP(A58,'RESUMEN DE COSTOS AP'!$A$5:$D$152,4,FALSE)","v":5},30,10,"NO",0,"NO",0,"NO",0,45]
["MH-003-01-18","Reforma de la autorización para el ejercicio de actividades de elaboración, importación y comercialización de aceite agrícola (SPRAY OIL)",0,0,{"$f":"VLOOKUP(A59,'RESUMEN DE COSTOS AP'!$A$5:$D$152,4,FALSE)","v":5},30,10,"NO",0,"NO",0,"NO",0,45]
["MH-003-01-13","Renovación de autorización para el ejercicio de actividades de elaboración, comercialización interna, importación y/o exportación de lubricantes",0,0,{"$f":"VLOOKUP(A60,'RESUMEN DE COSTOS AP'!$A$5:$D$152,4,FALSE)","v":5},30,10,"NO",0,"NO",0,"NO",0,45]
["MH-003-01-17","Renovación de la autorización para el ejercicio de actividades de elaboración, importación y comercialización de aceite agrícola (SPRAY OIL)",0,0,{"$f":"VLOOKUP(A61,'RESUMEN DE COSTOS AP'!$A$5:$D$152,4,FALSE)","v":5},30,10,"NO",0,"NO",0,"NO",0,45]
["MH-039-02-03","Renovación de Licencias de Comercialización y/o Exportación de Sustancias Mineras Metálicas o a la Exportación de Sustancias Minerales no Metálicas Para Personas Jurídicas Extranjeras",0,0,{"$f":"VLOOKUP(A62,'RESUMEN DE COSTOS AP'!$A$5:$D$152,4,FALSE)","v":5},30,10,"NO",0,"NO",0,"NO",0,45]
["MH-003-01-09","Renovación de operación para el ejercicio de actividades de comercialización de gas licuado de petróleo (GLP)",0,0,{"$f":"VLOOKUP(A63,'RESUMEN DE COSTOS AP'!$A$5:$D$152,4,FALSE)","v":5},30,10,"NO",0,"NO",0,"NO",0,45]
["MH-015-01-02","Aprobación de la reforma al programa de actividades y presupuesto de inversiones, costos y gastos anuales para empresa pública Petroamazonas EP",3,0,{"$f":"VLOOKUP(A64,'RESUMEN DE COSTOS AP'!$A$5:$D$152,4,FALSE)","v":20},30,10,"NO",0,"NO",0,"NO",0,63]
["MH-021-01-03","Calibración de detectores por cada escala adicional en planta central",3,0,{"$f":"VLOOKUP(A65,'RESUMEN DE COSTOS AP'!$A$5:$D$152,4,FALSE)","v":5},30,10,"NO",0,"NO",0,"NO",0,48]
["MH-021-01-06","Calibración de detectores por cada escala adicional fuera de planta central",3,0,{"$f":"VLOOKUP(A66,'RESUMEN DE COSTOS AP'!$A$5:$D$152,4,FALSE)","v":5},30,10,"NO",0,"NO",0,"NO",0,48]
["MH-008-01-04","Aprobación de taponamiento y abandono temporal de pozos",3,0,{"$f":"VLOOKUP(A67,'RESUMEN DE COSTOS AP'!$A$5:$D$152,4,FALSE)","v":5},30,10,"NO",0,"NO",0,"NO",0,48]
["MH-003-01-05","Autorización de operación para el ejercicio de actividades de comercialización de gas licuado de petróleo (GLP)",3,0,{"$f":"VLOOKUP(A68,'RESUMEN DE COSTOS AP'!$A$5:$D$152,4,FALSE)","v":10},30,10,"NO",0,"NO",0,"NO",0,53]
["MH-021-01-01","Calibración de cámaras de ionización y activímetros",3,0,{"$f":"VLOOKUP(A69,'RESUMEN DE COSTOS AP'!$A$5:$D$152,4,FALSE)","v":5},30,10,"NO",{"$f":"IF(H69=\"SI\",5,0)","v":0},"NO",{"$f":"IF(J69=\"SI\",10,0)","v":0},"NO",{"$f":"IF(L69=\"SI\",5,0)","v":0},{"$f":"SUM(C69:G69,I69,K69,M69)","v":48}]
["MH-021-01-04","Calibración de detectores de radiación tipo alarma",3,0,{"$f":"VLOOKUP(A70,'RESUMEN DE COSTOS AP'!$A$5:$D$152,4,FALSE)","v":20},30,10,"NO",0,"NO",0,"NO",0,63]
["MH-003-01-04","Calificación para el ejercicio de actividades de comercialización de gas licuado de petróleo (GLP) en cilindros",3,0,{"$f":"VLOOKUP(A71,'RESUMEN DE COSTOS AP'!$A$5:$D$152,4,FALSE)","v":20},30,10,"NO",0,"NO",0,"NO",0,63]
["MH-002-01-01","Constitución de organizaciones sociales relacionadas con el ámbito de energía y recursos naturales no renovables",3,0,{"$f":"VLOOKUP(A72,'RESUMEN DE COSTOS AP'!$A$5:$D$152,4,FALSE)","v":10},30,10,"NO",0,"NO",0,"NO",0,53]
["MH-026-01-02","Irradiación de dosímetros",3,0,{"$f":"VLOOKUP(A73,'RESUMEN DE COSTOS AP'!$A$5:$D$152,4,FALSE)","v":10},30,10,"NO",0,"NO",0,"NO",0,53]
["MH-002-01-04","Reforma de Estatutos de Organizaciones Sociales relacionadas con el ámbito de energía y recursos naturales no renovables",3,0,{"$f":"VLOOKUP(A74,'RESUMEN DE COSTOS AP'!$A$5:$D$152,4,FALSE)","v":10},30,10,"NO",0,"NO",0,"NO",0,53]
["MH-024-01-01","Análisis de espectrometría gamma o muestra",3,0,{"$f":"VLOOKUP(A75,'RESUMEN DE COSTOS AP'!$A$5:$D$152,4,FALSE)","v":10},30,10,"NO",0,"NO",0,"NO",0,53]
["MH-042-01-01","Modificación de Régimen de Minería Artesanal a Régimen de Pequeña Minería Para Personas Naturales",3,0,{"$f":"VLOOKUP(A76,'RESUMEN DE COSTOS AP'!$A$5:$D$152,4,FALSE)","v":10},30,10,"NO",0,"NO",0,"NO",0,53]
["MH-002-01-05","Registro de Directiva de Organizaciones Sociales relacionadas con el ámbito de energía y recursos naturales no renovables",3,0,{"$f":"VLOOKUP(A77,'RESUMEN DE COSTOS AP'!$A$5:$D$152,4,FALSE)","v":10},30,10,"NO",0,"NO",0,"NO",0,53]
["MH-011-01-04","Actualización de las tasas de producción de gas natural por pozo y yacimiento",3,0,{"$f":"VLOOKUP(A78,'RESUMEN DE COSTOS AP'!$A$5:$D$152,4,FALSE)","v":10},30,10,"NO",0,"NO",0,"NO",0,53]
["MERNNR-059-01-04","Aprobación de programas alternos de perforación",3,0,{"$f":"VLOOKUP(A79,'RESUMEN DE COSTOS AP'!$A$5:$D$152,4,FALSE)","v":10},30,10,"NO",0,"NO",0,"NO",0,53]
["MH-012-01-02","Aprobación de proyectos  para recuperación mejorada por yacimiento y campo",3,0,{"$f":"VLOOKUP(A80,'RESUMEN DE COSTOS AP'!$A$5:$D$152,4,FALSE)","v":10},30,10,"NO",0,"NO",0,"NO",0,53]
["MH-003-01-08","Calificación para el ejercicio de actividades de comercialización de gas licuado de petróleo (GLP) al granel: Instalaciones centralizadas o GLP vehicular",3,0,{"$f":"VLOOKUP(A81,'RESUMEN DE COSTOS AP'!$A$5:$D$152,4,FALSE)","v":20},30,10,"NO",0,"NO",0,"NO",0,63]
["MH-003-01-11","Extinción de la autorización para el ejercicio de actividades de comercialización de gas licuado de petróleo (GLP)",3,0,{"$f":"VLOOKUP(A82,'RESUMEN DE COSTOS AP'!$A$5:$D$152,4,FALSE)","v":20},30,10,"NO",0,"NO",0,"NO",0,63]
["MH-003-01-03","Reforma de la autorización de operación de comercializadoras de derivados del petróleo, o derivados del petróleo y sus mezclas con biocombustibles, excepto el gas licuado de petróleo (GLP)",3,0,{"$f":"VLOOKUP(A83,'RESUMEN DE COSTOS AP'!$A$5:$D$152,4,FALSE)","v":20},30,10,"NO",0,"NO",0,"NO",0,63]
["MERNNR-057-01-01","Aprobación de Reclasificación de Pozos",3,0,{"$f":"VLOOKUP(A84,'RESUMEN DE COSTOS AP'!$A$5:$D$152,4,FALSE)","v":20},30,10,"NO",0,"NO",0,"NO",0,63]
["MH-024-01-04","Determinación alfa y beta grueso en aguas hasta 5 muestras",3,0,{"$f":"VLOOKUP(A85,'RESUMEN DE COSTOS AP'!$A$5:$D$152,4,FALSE)","v":20},30,10,"NO",0,"NO",0,"NO",0,63]
["MH-019-02-03","Emisión de licencia institucional para fuentes abiertas",3,0,{"$f":"VLOOKUP(A86,'RESUMEN DE COSTOS AP'!$A$5:$D$152,4,FALSE)","v":20},30,10,"NO",0,"NO",0,"NO",0,63]
["MH-003-01-06","Extinción de la autorización de operación de comercializadoras de derivados del petróleo, o derivados del petróleo y sus mezclas con biocombustibles, excepto el gas licuado de petróleo (GLP)",3,0,{"$f":"VLOOKUP(A87,'RESUMEN DE COSTOS AP'!$A$5:$D$152,4,FALSE)","v":20},30,10,"NO",0,"NO",0,"NO",0,63]
["MH-037-02-01","Renovación de Autorización Para la Operación de Plantas de Beneficio, Fundición, Refinación y Relaveras",3,0,{"$f":"VLOOKUP(A88,'RESUMEN DE COSTOS AP'!$A$5:$D$152,4,FALSE)","v":20},30,10,"NO",0,"NO",0,"NO",0,63]
["MH-045-01-01","Calificación bajo el régimen especial de pequeña minería ",3,0,{"$f":"VLOOKUP(A89,'RESUMEN DE COSTOS AP'!$A$5:$D$152,4,FALSE)","v":20},30,10,"NO",0,"NO",0,"NO",0,63]
["MH-003-01-01","Calificación como comercializadoras de derivados de petróleo o derivados del petroleo y sus mezclas con biocombustibles",3,0,{"$f":"VLOOKUP(A90,'RESUMEN DE COSTOS AP'!$A$5:$D$152,4,FALSE)","v":20},30,10,"NO",0,"NO",0,"NO",0,63]
["MH-003-01-15","Extinción de la autorización para el ejercicio de actividades de elaboración, comercialización interna, importación y/o exportación de lubricantes",3,0,{"$f":"VLOOKUP(A91,'RESUMEN DE COSTOS AP'!$A$5:$D$152,4,FALSE)","v":20},30,10,"NO",0,"NO",0,"NO",0,63]
["MH-014-01-01","Inscripción de actos determinados en la ley de  hidrocarburos y su reglamento",3,0,{"$f":"VLOOKUP(A92,'RESUMEN DE COSTOS AP'!$A$5:$D$152,4,FALSE)","v":20},30,10,"NO",0,"NO",0,"NO",0,63]
["MH-049-01-01","Renuncia de Derechos Mineros (Permisos de Minería Artesanal, Concesiones Mineras, Libres Aprovechamientos de Materiales de Construcción para Obra Pública, Operación de Plantas de Beneficio, Licencias de Comercialización)",3,0,{"$f":"VLOOKUP(A93,'RESUMEN DE COSTOS AP'!$A$5:$D$152,4,FALSE)","v":20},30,10,"NO",0,"NO",0,"NO",0,63]
["MH-003-01-12","Autorización para el ejercicio de actividades de elaboración, comercialización interna, importación y/o exportación de lubricantes",6,0,{"$f":"VLOOKUP(A94,'RESUMEN DE COSTOS AP'!$A$5:$D$152,4,FALSE)","v":20},30,10,"NO",0,"NO",0,"NO",0,66]
["MH-024-01-02","Identificación de contaminantes radiactivos y su actividad",6,0,{"$f":"VLOOKUP(A95,'RESUMEN DE COSTOS AP'!$A$5:$D$152,4,FALSE)","v":20},30,10,"NO",0,"NO",0,"NO",0,66]
["MH-020-01-03","Inspección documental de seguridad radiológica para fuentes radiactivas categoría 5 (bajo riesgo radiológico)",6,0,{"$f":"VLOOKUP(A96,'RESUMEN DE COSTOS AP'!$A$5:$D$152,4,FALSE)","v":10},30,10,"NO",0,"NO",0,"NO",0,56]
["MH-003-01-07","Renovación de autorización de operación de comercializadoras de derivados del petróleo, o derivados del petróleo y sus mezclas con biocombustibles, excepto el gas licuado de petróleo (GLP)",6,0,{"$f":"VLOOKUP(A97,'RESUMEN DE COSTOS AP'!$A$5:$D$152,4,FALSE)","v":20},30,10,"NO",0,"NO",0,"NO",0,66]
["MH-039-02-01","Renovación de Licencias de Comercialización y/o Exportación de Sustancias Mineras Metálicas o a la Exportación de Sustancias Minerales no Metálicas Para Personas Naturales",6,0,{"$f":"VLOOKUP(A98,'RESUMEN DE COSTOS AP'!$A$5:$D$152,4,FALSE)","v":10},30,10,"NO",0,"NO",0,"NO",0,56]
["MH-008-01-03","Aprobación de taponamiento y abandono definitivo de pozos",6,0,{"$f":"VLOOKUP(A99,'RESUMEN DE COSTOS AP'!$A$5:$D$152,4,FALSE)","v":5},30,10,"NO",0,"NO",0,"NO",0,51]
["MH-019-02-04","Emisión de licencia institucional para fuentes selladas",6,0,{"$f":"VLOOKUP(A100,'RESUMEN DE COSTOS AP'!$A$5:$D$152,4,FALSE)","v":5},30,10,"NO",0,"NO",0,"NO",0,51]
["MH-003-01-14","Reforma de la autorización para el ejercicio de actividades de elaboración, comercialización interna, importación y/o exportación de lubricantes",6,0,{"$f":"VLOOKUP(A101,'RESUMEN DE COSTOS AP'!$A$5:$D$152,4,FALSE)","v":5},30,10,"NO",0,"NO",0,"NO",0,51]
["MERNNR-029-03-02","Emisión de autorización de re-exportación de equipos generadores de radiación ionizante",6,0,{"$f":"VLOOKUP(A102,'RESUMEN DE COSTOS AP'!$A$5:$D$152,4,FALSE)","v":5},30,10,"NO",0,"NO",0,"NO",0,51]
["MH-039-01-01","Otorgamiento de Licencias de Comercialización y/o Exportación de Sustancias Mineras Metálicas o a la Exportación de Sustancias Minerales no Metálicas Para Personas Naturales",6,0,{"$f":"VLOOKUP(A103,'RESUMEN DE COSTOS AP'!$A$5:$D$152,4,FALSE)","v":5},30,10,"NO",0,"NO",0,"NO",0,51]
["MH-024-02-03","Prueba de fuga en fuentes selladas más de 5 muestras",6,0,{"$f":"VLOOKUP(A104,'RESUMEN DE COSTOS AP'!$A$5:$D$152,4,FALSE)","v":10},30,10,"NO",0,"NO",0,"NO",0,56]
["MH-026-01-01","Irradiación de muestras",6,0,{"$f":"VLOOKUP(A105,'RESUMEN DE COSTOS AP'!$A$5:$D$152,4,FALSE)","v":10},30,10,"NO",0,"NO",0,"NO",0,56]
["MH-012-01-01","Aprobación de proyectos de Recuperación Secundaria",6,0,{"$f":"VLOOKUP(A106,'RESUMEN DE COSTOS AP'!$A$5:$D$152,4,FALSE)","v":10},30,10,"NO",0,"NO",0,"NO",0,56]
["MH-009-01-01","Aprobación para uso del crudo en operaciones de explotación para empresas privadas",6,0,{"$f":"VLOOKUP(A107,'RESUMEN DE COSTOS AP'!$A$5:$D$152,4,FALSE)","v":10},30,10,"NO",0,"NO",0,"NO",0,56]
["MERNNR-029-03-01","Emisión de autorización de re-exportación de fuentes radiactivas",6,0,{"$f":"VLOOKUP(A108,'RESUMEN DE COSTOS AP'!$A$5:$D$152,4,FALSE)","v":10},30,10,"NO",0,"NO",0,"NO",0,56]
["MH-019-02-05","Emisión de licencia institucional para instalación y mantenimiento de equipos generadores y emisores de radiación ionizante",6,0,{"$f":"VLOOKUP(A109,'RESUMEN DE COSTOS AP'!$A$5:$D$152,4,FALSE)","v":20},30,10,"NO",0,"NO",0,"NO",0,66]
["MERNNR-067-01-01","Aprobación de la prolongación de Pruebas de Producción",6,0,{"$f":"VLOOKUP(A110,'RESUMEN DE COSTOS AP'!$A$5:$D$152,4,FALSE)","v":20},30,10,"NO",0,"NO",0,"NO",0,66]
["MH-016-01-01","Entrega de información hidrocarburífera ",6,0,{"$f":"VLOOKUP(A111,'RESUMEN DE COSTOS AP'!$A$5:$D$152,4,FALSE)","v":20},30,10,"NO",0,"NO",0,"NO",0,66]
["MH-019-03-01","Emisión de licencia de importación para equipos emisores de radiación ionizante y material radiactivo",6,0,{"$f":"VLOOKUP(A112,'RESUMEN DE COSTOS AP'!$A$5:$D$152,4,FALSE)","v":5},30,10,"NO",0,"NO",0,"NO",0,51]
["MH-003-01-02","Autorización de operación de comercializadoras de derivados del petróleo o derivados del petróleo y sus mezclas con biocombustibles, excepto el gas licuado de petróleo (GLP) por cada segmento de mercado",6,0,{"$f":"VLOOKUP(A113,'RESUMEN DE COSTOS AP'!$A$5:$D$152,4,FALSE)","v":5},30,10,"NO",0,"NO",0,"NO",0,51]
["MH-019-02-02","Emisión de licencia institucional para equipos generadores de radiación ionizante para uso no médico",6,0,{"$f":"VLOOKUP(A114,'RESUMEN DE COSTOS AP'!$A$5:$D$152,4,FALSE)","v":20},30,10,"NO",0,"NO",0,"NO",0,66]
["MH-039-02-02","Renovación de Licencias de Comercialización y/o Exportación de Sustancias Mineras Metálicas o a la Exportación de Sustancias Minerales no Metálicas Para Personas Jurídicas",6,0,{"$f":"VLOOKUP(A115,'RESUMEN DE COSTOS AP'!$A$5:$D$152,4,FALSE)","v":10},30,10,"NO",0,"NO",0,"NO",0,56]
["MH-039-01-02","Otorgamiento de Licencias de Comercialización y/o Exportación de Sustancias Mineras Metálicas o a la Exportación de Sustancias Minerales no Metálicas Para Personas Jurídicas",6,0,{"$f":"VLOOKUP(A116,'RESUMEN DE COSTOS AP'!$A$5:$D$152,4,FALSE)","v":10},30,10,"NO",0,"NO",0,"NO",0,56]
["MH-015-01-01","Aprobación del programa de actividades y presupuesto de inversiones, costos y gastos anuales para la empresa pública Petroamazonas EP",6,0,{"$f":"VLOOKUP(A117,'RESUMEN DE COSTOS AP'!$A$5:$D$152,4,FALSE)","v":10},30,10,"NO",0,"NO",0,"NO",0,56]
["MERNNR-059-01-01","Aprobación de programas de side track",6,0,{"$f":"VLOOKUP(A118,'RESUMEN DE COSTOS AP'!$A$5:$D$152,4,FALSE)","v":10},30,10,"NO",0,"NO",0,"NO",0,56]
["MH-019-01-03","Ampliación de licencia personal en materia de seguridad radiológica",6,0,{"$f":"VLOOKUP(A119,'RESUMEN DE COSTOS AP'!$A$5:$D$152,4,FALSE)","v":10},30,10,"NO",0,"NO",0,"NO",0,56]
["MH-024-01-05","Determinación alfa y beta grueso en aguas más de 5 muestras",6,0,{"$f":"VLOOKUP(A120,'RESUMEN DE COSTOS AP'!$A$5:$D$152,4,FALSE)","v":20},30,10,"NO",0,"NO",0,"NO",0,66]
["MH-007-01-01","Notificación de construcción de nuevas facilidades, ampliación, mejoramiento y o modificación de producción de facilidades existentes para el tratamiento de hidrocarburos que consten en el presupuesto anual aprobado de inversiones, costos y gastos",6,0,{"$f":"VLOOKUP(A121,'RESUMEN DE COSTOS AP'!$A$5:$D$152,4,FALSE)","v":20},30,10,"NO",0,"NO",0,"NO",0,66]
["MERNNR-069-01-01","Aprobación de la legalización de cambios de zona productora",10,0,{"$f":"VLOOKUP(A122,'RESUMEN DE COSTOS AP'!$A$5:$D$152,4,FALSE)","v":20},30,10,"NO",0,"NO",0,"NO",0,70]
["MH-019-03-02","Emisión de licencia de importación para equipos generadores de radiación ionizante",10,0,{"$f":"VLOOKUP(A123,'RESUMEN DE COSTOS AP'!$A$5:$D$152,4,FALSE)","v":10},30,10,"NO",0,"NO",0,"NO",0,60]
["MH-024-02-01","Prueba de fuga en fuentes selladas hasta 5 muestras",10,0,{"$f":"VLOOKUP(A124,'RESUMEN DE COSTOS AP'!$A$5:$D$152,4,FALSE)","v":5},30,10,"NO",0,"NO",0,"NO",0,55]
["MH-006-01-05","Notificación  de  programas alternos de pozos productores hidrocarburiferos, inyectores o re inyectores",10,0,{"$f":"VLOOKUP(A125,'RESUMEN DE COSTOS AP'!$A$5:$D$152,4,FALSE)","v":5},30,10,"NO",0,"NO",0,"NO",0,55]
["MH-011-01-03","Actualización de las tasas de producción de petróleo por pozo y yacimiento",10,0,{"$f":"VLOOKUP(A126,'RESUMEN DE COSTOS AP'!$A$5:$D$152,4,FALSE)","v":20},30,10,"NO",0,"NO",0,"NO",0,70]
["MERNNR-029-05-01","Emisión de autorización de importación de fuentes selladas",10,0,{"$f":"VLOOKUP(A127,'RESUMEN DE COSTOS AP'!$A$5:$D$152,4,FALSE)","v":20},30,10,"NO",0,"NO",0,"NO",0,70]
["MH-006-01-01","Notificación de completación y pruebas iniciales",10,0,{"$f":"VLOOKUP(A128,'RESUMEN DE COSTOS AP'!$A$5:$D$152,4,FALSE)","v":20},30,10,"NO",0,"NO",0,"NO",0,70]
["MH-046-01-01","Cesión y Transferencia de Derechos Mineros",10,0,{"$f":"VLOOKUP(A129,'RESUMEN DE COSTOS AP'!$A$5:$D$152,4,FALSE)","v":20},30,10,"NO",0,"NO",0,"NO",0,70]
["MERNNR-058-01-01","Aprobación de perforación de pozos",10,0,{"$f":"VLOOKUP(A130,'RESUMEN DE COSTOS AP'!$A$5:$D$152,4,FALSE)","v":20},30,10,"NO",0,"NO",0,"NO",0,70]
["MH-041-01-01","Extensión de la vigencia y/o de los volúmenes de explotación de la Autorización Temporal de Libre Aprovechamiento de Materiales de Construcción Para Obras Públicas Para Entidades Públicas",10,0,{"$f":"VLOOKUP(A131,'RESUMEN DE COSTOS AP'!$A$5:$D$152,4,FALSE)","v":20},30,10,"NO",0,"NO",0,"NO",0,70]
["MH-029-01-01","Autorización de oficial de seguridad radiológica OSR",10,0,{"$f":"VLOOKUP(A132,'RESUMEN DE COSTOS AP'!$A$5:$D$152,4,FALSE)","v":10},30,10,"NO",0,"NO",0,"NO",0,60]
["MH-020-01-02","Inspección documental de seguridad radiológica para equipos generadores de radiación ionizante",10,0,{"$f":"VLOOKUP(A133,'RESUMEN DE COSTOS AP'!$A$5:$D$152,4,FALSE)","v":10},30,10,"NO",{"$f":"IF(H133=\"SI\",5,0)","v":0},"NO",{"$f":"IF(J133=\"SI\",10,0)","v":0},"NO",{"$f":"IF(L133=\"SI\",5,0)","v":0},{"$f":"SUM(C133:G133,I133,K133,M133)","v":60}]
["MH-011-01-02","Aprobación de las tasas de producción de gas natural por pozo y yacimiento",10,0,{"$f":"VLOOKUP(A134,'RESUMEN DE COSTOS AP'!$A$5:$D$152,4,FALSE)","v":20},30,10,"NO",0,"NO",0,"NO",0,70]
["MERNNR-029-05-02","Emisión de autorización de importación de fuentes abiertas",10,0,{"$f":"VLOOKUP(A135,'RESUMEN DE COSTOS AP'!$A$5:$D$152,4,FALSE)","v":10},0,10,"NO",0,"NO",0,"NO",0,30]
["MERNNR-029-04-01","Emisión de autorización de movilización de fuentes radiactivas",10,0,{"$f":"VLOOKUP(A136,'RESUMEN DE COSTOS AP'!$A$5:$D$152,4,FALSE)","v":5},30,10,"NO",0,"NO",0,"NO",0,55]
["MH-006-01-03","Aprobación de reacondicionamientos de pozos productores hidrocarburiferos, inyectores o re inyectores",10,0,{"$f":"VLOOKUP(A137,'RESUMEN DE COSTOS AP'!$A$5:$D$152,4,FALSE)","v":5},30,10,"NO",0,"NO",0,"NO",0,55]
["MH-019-01-04","Actualización de licencia personal en materia de seguridad radiológica",10,0,{"$f":"VLOOKUP(A138,'RESUMEN DE COSTOS AP'!$A$5:$D$152,4,FALSE)","v":5},30,10,"NO",0,"NO",0,"NO",0,55]
["MH-040-01-01","Autorización Temporal de Libre Aprovechamiento de Materiales de Construcción Para Obras Públicas Para Entidades Gubernamentales",10,0,{"$f":"VLOOKUP(A139,'RESUMEN DE COSTOS AP'!$A$5:$D$152,4,FALSE)","v":5},30,10,"NO",0,"NO",0,"NO",0,55]
["MH-006-01-04","Aprobación de  programas alternos de pozos productores hidrocarburiferos, inyectores o re inyectores",10,0,{"$f":"VLOOKUP(A140,'RESUMEN DE COSTOS AP'!$A$5:$D$152,4,FALSE)","v":10},30,10,"NO",0,"NO",0,"NO",0,60]
["MH-011-01-01","Aprobación de las tasas de producción de petróleo por pozo y yacimiento",10,0,{"$f":"VLOOKUP(A141,'RESUMEN DE COSTOS AP'!$A$5:$D$152,4,FALSE)","v":5},30,10,"NO",0,"NO",0,"NO",0,55]
["MH-019-02-01","Emisión licencia institucional para equipos generadores de radiación ionizante para uso médico",10,0,{"$f":"VLOOKUP(A142,'RESUMEN DE COSTOS AP'!$A$5:$D$152,4,FALSE)","v":5},30,10,"NO",0,"NO",0,"NO",0,55]
["MH-021-01-02","Calibración de detectores en planta central",10,0,{"$f":"VLOOKUP(A143,'RESUMEN DE COSTOS AP'!$A$5:$D$152,4,FALSE)","v":20},30,10,"NO",0,"NO",0,"NO",0,70]
["MH-005-01-01","Atención de solicitudes de acceso a la información pública",10,0,{"$f":"VLOOKUP(A144,'RESUMEN DE COSTOS AP'!$A$5:$D$152,4,FALSE)","v":5},30,10,"NO",0,"NO",0,"NO",0,55]
["MH-019-01-01","Licencia personal en materia de seguridad radiológica por primera vez",10,0,{"$f":"VLOOKUP(A145,'RESUMEN DE COSTOS AP'!$A$5:$D$152,4,FALSE)","v":20},30,10,"NO",0,"NO",0,"NO",0,70]
["MH-020-01-01","Inspección de seguridad radiológica",10,0,{"$f":"VLOOKUP(A146,'RESUMEN DE COSTOS AP'!$A$5:$D$152,4,FALSE)","v":20},30,10,"NO",0,"NO",0,"NO",0,70]
["MERNNR-029-02-01","Emisión de autorización de importación de equipos generadores de radiación ionizante",10,0,{"$f":"VLOOKUP(A147,'RESUMEN DE COSTOS AP'!$A$5:$D$152,4,FALSE)","v":20},30,10,"NO",0,"NO",0,"NO",0,70]
["MH-006-01-02","Notificación  de reacondicionamientos de pozos productores hidrocarburifero, inyectores o re inyectores",10,0,{"$f":"VLOOKUP(A148,'RESUMEN DE COSTOS AP'!$A$5:$D$152,4,FALSE)","v":20},30,10,"NO",0,"NO",0,"NO",0,70]
["MH-019-01-02","Renovación de licencia personal en materia de seguridad radiológica",10,0,{"$f":"VLOOKUP(A149,'RESUMEN DE COSTOS AP'!$A$5:$D$152,4,FALSE)","v":5},30,10,"NO",0,"NO",0,"NO",0,55]
["MH-022-01-01","Dosimetría personal externa de cuerpo entero",10,0,{"$f":"VLOOKUP(A150,'RESUMEN DE COSTOS AP'!$A$5:$D$152,4,FALSE)","v":20},30,10,"NO",0,"NO",0,"NO",0,70]
["MH-055-01-01","Capacitación en materia de seguridad radiológica",10,0,{"$f":"VLOOKUP(A151,'RESUMEN DE COSTOS AP'!$A$5:$D$152,4,FALSE)","v":20},30,10,"NO",0,"NO",0,"NO",0,70]
[]
[]
[]
[]
[]
[]
[]
[]
[]
[null,null,null,null,null,null,null,null,null,null,null,null,null,null,null,null,null,null,null,null,"cpa",5,10,20]
[null,null,null,null,null,null,null,null,null,null,null,null,null,null,null,null,null,null,null,null,"tr",0,30]
[null,null,null,null,null,null,null,null,null,null,null,null,null,null,null,null,null,null,null,null,"ca",0,10]
[null,null,null,null,null,null,null,null,null,null,null,null,null,null,null,null,null,null,null,null,null,"SI","NO"]